Workbook

Sheet Consolidado 2010-2020
B12: ANO | C12: Investimentos Anuais (R$ milhões)
C13: Distribuição | D13: MMGD | E13: P&D | F13: Eficiência Energética | G13: Transmissão | H13: Geração Centralizada | I13: Total
B14: 2010 | C14: ='dist 2010-2020'!F13 -> 18767.50049 | E14: ='p&d 2008-2020'!C16 -> 670.38929 | F14: ='pee 2008-2020'!D16 -> 1014.166962 | G14: ='transmissao 2010-2020'!E13 -> 7915.711564 | H14: ='Ger Centralizada 2010-2020'!I14 -> 33585.8704 | I14: =SUM(C14:H14) -> 61953.63871
B15: 2011 | C15: ='dist 2010-2020'!F14 -> 17211.91891 | E15: ='p&d 2008-2020'!C17 -> 592.0659591 | F15: ='pee 2008-2020'!D17 -> 802.7994647 | G15: ='transmissao 2010-2020'!E14 -> 8937.993156 | H15: ='Ger Centralizada 2010-2020'!I15 -> 31148.266 | I15: =SUM(C15:H15) -> 58693.04348
B16: 2012 | C16: ='dist 2010-2020'!F15 -> 18241.32405 | E16: ='p&d 2008-2020'!C18 -> 939.2652355 | F16: ='pee 2008-2020'!D18 -> 769.3653863 | G16: ='transmissao 2010-2020'!E15 -> 10235.09525 | H16: ='Ger Centralizada 2010-2020'!I16 -> 36808.07527 | I16: 66993.12519
B17: 2013 | C17: ='dist 2010-2020'!F16 -> 15875.2681 | D17: ='mmgd 2010-2020'!G16 -> 20.83410829 | E17: ='p&d 2008-2020'!C19 -> 552.1145108 | F17: ='pee 2008-2020'!D19 -> 626.0618859 | G17: ='transmissao 2010-2020'!E16 -> 8397.145554 | H17: ='Ger Centralizada 2010-2020'!I17 -> 40997.33447 | I17: 66468.75862
B18: 2014 | C18: ='dist 2010-2020'!F17 -> 14179.63599 | D18: ='mmgd 2010-2020'!G17 -> 38.24571606 | E18: ='p&d 2008-2020'!C20 -> 742.2344675 | F18: ='pee 2008-2020'!D20 -> 676.4936003 | G18: ='transmissao 2010-2020'!E17 -> 8719.448566 | H18: ='Ger Centralizada 2010-2020'!I18 -> 40200.60121 | I18: 64556.65955
B19: 2015 | C19: ='dist 2010-2020'!F18 -> 14366.95414 | D19: ='mmgd 2010-2020'!G18 -> 102.1893026 | E19: ='p&d 2008-2020'!C21 -> 570.8062504 | F19: ='pee 2008-2020'!D21 -> 710.0340522 | G19: ='transmissao 2010-2020'!E18 -> 11448.19628 | H19: ='Ger Centralizada 2010-2020'!I19 -> 36853.68871 | I19: 64051.86873
B20: 2016 | C20: ='dist 2010-2020'!F19 -> 16049.28534 | D20: ='mmgd 2010-2020'!G19 -> 607.6745623 | E20: ='p&d 2008-2020'!C22 -> 545.9263142 | F20: ='pee 2008-2020'!D22 -> 599.0508302 | G20: ='transmissao 2010-2020'!E19 -> 21824.13901 | H20: ='Ger Centralizada 2010-2020'!I20 -> 36094.30268 | I20: 75720.37874
B21: 2017 | C21: ='dist 2010-2020'!F20 -> 17732.449 | D21: ='mmgd 2010-2020'!G20 -> 1057.175297 | E21: ='p&d 2008-2020'!C23 -> 625.8860428 | F21: ='pee 2008-2020'!D23 -> 614.9499218 | G21: ='transmissao 2010-2020'!E20 -> 22933.80173 | H21: ='Ger Centralizada 2010-2020'!I21 -> 28119.99095 | I21: 71084.25294
B22: 2018 | C22: ='dist 2010-2020'!F21 -> 16706.1639 | D22: ='mmgd 2010-2020'!G21 -> 2347.423959 | E22: ='p&d 2008-2020'!C24 -> 949.547567 | F22: ='pee 2008-2020'!D24 -> 554.1552871 | G22: ='transmissao 2010-2020'!E21 -> 23344.96397 | H22: ='Ger Centralizada 2010-2020'!I22 -> 17987.37222 | I22: 61889.62691
B23: 2019 | C23: ='dist 2010-2020'!F22 -> 18569.89667 | D23: ='mmgd 2010-2020'!G22 -> 6729.693053 | E23: ='p&d 2008-2020'!C25 -> 1102.277155 | F23: ='pee 2008-2020'!D25 -> 717.0379608 | G23: ='transmissao 2010-2020'!E22 -> 21494.45057 | H23: ='Ger Centralizada 2010-2020'!I23 -> 22663.19653 | I23: 71276.55194
B24: 2020 | C24: ='dist 2010-2020'!F23 -> 19262.158 | D24: ='mmgd 2010-2020'!G23 -> 10409.40018 | E24: ='p&d 2008-2020'!C26 -> 888.448894 | F24: ='pee 2008-2020'!D26 -> 605.011969 | G24: ='transmissao 2010-2020'!E23 -> 17291.57577 | H24: ='Ger Centralizada 2010-2020'!I24 -> 29144.92149 | I24: =SUM(C24:H24) -> 77601.5163
B25: Total | C25: =SUM(C14:C24) -> 186962.5546 | D25: =SUM(D14:D24) -> 21312.63618 | E25: 8178.961686 | F25: 7689.12732 | G25: 162542.5214 | H25: 353603.6199 | I25: 740289.4211
C28: Investimentos Anuais (R$ bilhões)
C29: Distribuição | D29: MMGD | E29: P&D | F29: Eficiência Energética | G29: Transmissão | H29: Geração Centralizada | I29: Total
B30: 2010 | C30: =C14/1000 -> 18.76750049 | D30: =D14/1000 -> 0 | E30: =E14/1000 -> 0.67038929 | F30: 1.014166962 | G30: 7.915711564 | H30: 33.5858704 | I30: 61.95363871
B31: 2011 | C31: 17.21191891 | D31: =D15/1000 -> 0 | E31: 0.5920659591 | F31: 0.8027994647 | G31: =G15/1000 -> 8.937993156 | H31: 31.148266 | I31: 58.69304348
B32: 2012 | C32: 18.24132405 | D32: 0 | E32: 0.9392652355 | F32: 0.7693653863 | G32: 10.23509525 | H32: 36.80807527 | I32: 66.99312519
B33: 2013 | C33: 15.8752681 | D33: 0.02083410829 | E33: 0.5521145108 | F33: 0.6260618859 | G33: 8.397145554 | H33: 40.99733447 | I33: 66.46875862
B34: 2014 | C34: 14.17963599 | D34: 0.03824571606 | E34: 0.7422344675 | F34: 0.6764936003 | G34: 8.719448566 | H34: 40.20060121 | I34: 64.55665955
B35: 2015 | C35: 14.36695414 | D35: 0.1021893026 | E35: 0.5708062504 | F35: 0.7100340522 | G35: 11.44819628 | H35: 36.85368871 | I35: 64.05186873
B36: 2016 | C36: 16.04928534 | D36: 0.6076745623 | E36: 0.5459263142 | F36: 0.5990508302 | G36: 21.82413901 | H36: 36.09430268 | I36: 75.72037874
B37: 2017 | C37: 17.732449 | D37: 1.057175297 | E37: 0.6258860428 | F37: 0.6149499218 | G37: 22.93380173 | H37: 28.11999095 | I37: 71.08425294
B38: 2018 | C38: 16.7061639 | D38: 2.347423959 | E38: 0.949547567 | F38: 0.5541552871 | G38: 23.34496397 | H38: 17.98737222 | I38: 61.88962691
B39: 2019 | C39: 18.56989667 | D39: 6.729693053 | E39: 1.102277155 | F39: 0.7170379608 | G39: 21.49445057 | H39: 22.66319653 | I39: 71.27655194
B40: 2020 | C40: 19.262158 | D40: 10.40940018 | E40: 0.888448894 | F40: 0.605011969 | G40: 17.29157577 | H40: 29.14492149 | I40: 77.6015163
B41: Total | C41: =SUM(C30:C40) -> 186.9625546 | D41: =SUM(D30:D40) -> 21.31263618 | E41: 8.178961686 | F41: 7.68912732 | G41: 162.5425214 | H41: 353.6036199 | I41: 740.2894211
C42: =C41/$I$41 -> 0.2525533248 | D42: =D41/$I$41 -> 0.02878959981 | E42: 0.01104832982 | F42: 0.01038665028 | G42: 0.2195661815 | H42: 0.4776559138 | I42: 1

Sheet Ger Centralizada 2010-2020
B12: Investimentos em Geração Centralizada (milhões de reais)
B13: Ano | C13: Eólica | D13: PCH | E13: Fotovoltaica | F13: UHE | G13: Biomassa | H13: UTE Fóssil | I13: Total Geral
B14: 2010 | C14: =IF('Base de dados nominais'!$N$7=12,'Base de dados nominais'!C79,'Base de dados nominais'!C79*(VLOOKUP(VLOOKUP('Base de dados nominais'!$N$7,'Base de dados nominais'!$K$2:$M$13,3,),IPCA!$B$4:$D$46,2,0)/VLOOKUP(DATE($B14,12,1),IPCA!$B$4:$D$46,2,0))) -> 3415.915096 | D14: =IF('Base de dados nominais'!$N$7=12,'Base de dados nominais'!D79,'Base de dados nominais'!D79*(VLOOKUP(VLOOKUP('Base de dados nominais'!$N$7,'Base de dados nominais'!$K$2:$M$13,3,),IPCA!$B$4:$D$46,2,0)/VLOOKUP(DATE($B14,12,1),IPCA!$B$4:$D$46,2,0))) -> 3788.339438 | E14: =IF('Base de dados nominais'!$N$7=12,'Base de dados nominais'!E79,'Base de dados nominais'!E79*(VLOOKUP(VLOOKUP('Base de dados nominais'!$N$7,'Base de dados nominais'!$K$2:$M$13,3,),IPCA!$B$4:$D$46,2,0)/VLOOKUP(DATE($B14,12,1),IPCA!$B$4:$D$46,2,0))) -> 0 | F14: =IF('Base de dados nominais'!$N$7=12,'Base de dados nominais'!F79,'Base de dados nominais'!F79*(VLOOKUP(VLOOKUP('Base de dados nominais'!$N$7,'Base de dados nominais'!$K$2:$M$13,3,),IPCA!$B$4:$D$46,2,0)/VLOOKUP(DATE($B14,12,1),IPCA!$B$4:$D$46,2,0))) -> 16946.11582 | G14: =IF('Base de dados nominais'!$N$7=12,'Base de dados nominais'!G79,'Base de dados nominais'!G79*(VLOOKUP(VLOOKUP('Base de dados nominais'!$N$7,'Base de dados nominais'!$K$2:$M$13,3,),IPCA!$B$4:$D$46,2,0)/VLOOKUP(DATE($B14,12,1),IPCA!$B$4:$D$46,2,0))) -> 2817.357965 | H14: =IF('Base de dados nominais'!$N$7=12,'Base de dados nominais'!H79,'Base de dados nominais'!H79*(VLOOKUP(VLOOKUP('Base de dados nominais'!$N$7,'Base de dados nominais'!$K$2:$M$13,3,),IPCA!$B$4:$D$46,2,0)/VLOOKUP(DATE($B14,12,1),IPCA!$B$4:$D$46,2,0))) -> 6618.142078 | I14: =SUM(C14:H14) -> 33585.8704
B15: 2011 | C15: =IF('Base de dados nominais'!$N$7=12,'Base de dados nominais'!C80,'Base de dados nominais'!C80*(VLOOKUP(VLOOKUP('Base de dados nominais'!$N$7,'Base de dados nominais'!$K$2:$M$13,3,),IPCA!$B$4:$D$46,2,0)/VLOOKUP(DATE($B15,12,1),IPCA!$B$4:$D$46,2,0))) -> 2633.529152 | D15: =IF('Base de dados nominais'!$N$7=12,'Base de dados nominais'!D80,'Base de dados nominais'!D80*(VLOOKUP(VLOOKUP('Base de dados nominais'!$N$7,'Base de dados nominais'!$K$2:$M$13,3,),IPCA!$B$4:$D$46,2,0)/VLOOKUP(DATE($B15,12,1),IPCA!$B$4:$D$46,2,0))) -> 2654.22005 | E15: =IF('Base de dados nominais'!$N$7=12,'Base de dados nominais'!E80,'Base de dados nominais'!E80*(VLOOKUP(VLOOKUP('Base de dados nominais'!$N$7,'Base de dados nominais'!$K$2:$M$13,3,),IPCA!$B$4:$D$46,2,0)/VLOOKUP(DATE($B15,12,1),IPCA!$B$4:$D$46,2,0))) -> 0 | F15: =IF('Base de dados nominais'!$N$7=12,'Base de dados nominais'!F80,'Base de dados nominais'!F80*(VLOOKUP(VLOOKUP('Base de dados nominais'!$N$7,'Base de dados nominais'!$K$2:$M$13,3,),IPCA!$B$4:$D$46,2,0)/VLOOKUP(DATE($B15,12,1),IPCA!$B$4:$D$46,2,0))) -> 16733.10556 | G15: =IF('Base de dados nominais'!$N$7=12,'Base de dados nominais'!G80,'Base de dados nominais'!G80*(VLOOKUP(VLOOKUP('Base de dados nominais'!$N$7,'Base de dados nominais'!$K$2:$M$13,3,),IPCA!$B$4:$D$46,2,0)/VLOOKUP(DATE($B15,12,1),IPCA!$B$4:$D$46,2,0))) -> 3377.969608 | H15: =IF('Base de dados nominais'!$N$7=12,'Base de dados nominais'!H80,'Base de dados nominais'!H80*(VLOOKUP(VLOOKUP('Base de dados nominais'!$N$7,'Base de dados nominais'!$K$2:$M$13,3,),IPCA!$B$4:$D$46,2,0)/VLOOKUP(DATE($B15,12,1),IPCA!$B$4:$D$46,2,0))) -> 5749.441624 | I15: =SUM(C15:H15) -> 31148.266
B16: 2012 | C16: =IF('Base de dados nominais'!$N$7=12,'Base de dados nominais'!C81,'Base de dados nominais'!C81*(VLOOKUP(VLOOKUP('Base de dados nominais'!$N$7,'Base de dados nominais'!$K$2:$M$13,3,),IPCA!$B$4:$D$46,2,0)/VLOOKUP(DATE($B16,12,1),IPCA!$B$4:$D$46,2,0))) -> 6212.22961 | D16: =IF('Base de dados nominais'!$N$7=12,'Base de dados nominais'!D81,'Base de dados nominais'!D81*(VLOOKUP(VLOOKUP('Base de dados nominais'!$N$7,'Base de dados nominais'!$K$2:$M$13,3,),IPCA!$B$4:$D$46,2,0)/VLOOKUP(DATE($B16,12,1),IPCA!$B$4:$D$46,2,0))) -> 1637.65412 | E16: =IF('Base de dados nominais'!$N$7=12,'Base de dados nominais'!E81,'Base de dados nominais'!E81*(VLOOKUP(VLOOKUP('Base de dados nominais'!$N$7,'Base de dados nominais'!$K$2:$M$13,3,),IPCA!$B$4:$D$46,2,0)/VLOOKUP(DATE($B16,12,1),IPCA!$B$4:$D$46,2,0))) -> 0 | F16: =IF('Base de dados nominais'!$N$7=12,'Base de dados nominais'!F81,'Base de dados nominais'!F81*(VLOOKUP(VLOOKUP('Base de dados nominais'!$N$7,'Base de dados nominais'!$K$2:$M$13,3,),IPCA!$B$4:$D$46,2,0)/VLOOKUP(DATE($B16,12,1),IPCA!$B$4:$D$46,2,0))) -> 18368.13254 | G16: =IF('Base de dados nominais'!$N$7=12,'Base de dados nominais'!G81,'Base de dados nominais'!G81*(VLOOKUP(VLOOKUP('Base de dados nominais'!$N$7,'Base de dados nominais'!$K$2:$M$13,3,),IPCA!$B$4:$D$46,2,0)/VLOOKUP(DATE($B16,12,1),IPCA!$B$4:$D$46,2,0))) -> 4228.857373 | H16: =IF('Base de dados nominais'!$N$7=12,'Base de dados nominais'!H81,'Base de dados nominais'!H81*(VLOOKUP(VLOOKUP('Base de dados nominais'!$N$7,'Base de dados nominais'!$K$2:$M$13,3,),IPCA!$B$4:$D$46,2,0)/VLOOKUP(DATE($B16,12,1),IPCA!$B$4:$D$46,2,0))) -> 6361.201623 | I16: 36808.07527
B17: 2013 | C17: =IF('Base de dados nominais'!$N$7=12,'Base de dados nominais'!C82,'Base de dados nominais'!C82*(VLOOKUP(VLOOKUP('Base de dados nominais'!$N$7,'Base de dados nominais'!$K$2:$M$13,3,),IPCA!$B$4:$D$46,2,0)/VLOOKUP(DATE($B17,12,1),IPCA!$B$4:$D$46,2,0))) -> 15693.60836 | D17: =IF('Base de dados nominais'!$N$7=12,'Base de dados nominais'!D82,'Base de dados nominais'!D82*(VLOOKUP(VLOOKUP('Base de dados nominais'!$N$7,'Base de dados nominais'!$K$2:$M$13,3,),IPCA!$B$4:$D$46,2,0)/VLOOKUP(DATE($B17,12,1),IPCA!$B$4:$D$46,2,0))) -> 1344.236667 | E17: =IF('Base de dados nominais'!$N$7=12,'Base de dados nominais'!E82,'Base de dados nominais'!E82*(VLOOKUP(VLOOKUP('Base de dados nominais'!$N$7,'Base de dados nominais'!$K$2:$M$13,3,),IPCA!$B$4:$D$46,2,0)/VLOOKUP(DATE($B17,12,1),IPCA!$B$4:$D$46,2,0))) -> 0 | F17: =IF('Base de dados nominais'!$N$7=12,'Base de dados nominais'!F82,'Base de dados nominais'!F82*(VLOOKUP(VLOOKUP('Base de dados nominais'!$N$7,'Base de dados nominais'!$K$2:$M$13,3,),IPCA!$B$4:$D$46,2,0)/VLOOKUP(DATE($B17,12,1),IPCA!$B$4:$D$46,2,0))) -> 17855.62087 | G17: =IF('Base de dados nominais'!$N$7=12,'Base de dados nominais'!G82,'Base de dados nominais'!G82*(VLOOKUP(VLOOKUP('Base de dados nominais'!$N$7,'Base de dados nominais'!$K$2:$M$13,3,),IPCA!$B$4:$D$46,2,0)/VLOOKUP(DATE($B17,12,1),IPCA!$B$4:$D$46,2,0))) -> 3280.636398 | H17: =IF('Base de dados nominais'!$N$7=12,'Base de dados nominais'!H82,'Base de dados nominais'!H82*(VLOOKUP(VLOOKUP('Base de dados nominais'!$N$7,'Base de dados nominais'!$K$2:$M$13,3,),IPCA!$B$4:$D$46,2,0)/VLOOKUP(DATE($B17,12,1),IPCA!$B$4:$D$46,2,0))) -> 2823.232176 | I17: 40997.33447
B18: 2014 | C18: =IF('Base de dados nominais'!$N$7=12,'Base de dados nominais'!C83,'Base de dados nominais'!C83*(VLOOKUP(VLOOKUP('Base de dados nominais'!$N$7,'Base de dados nominais'!$K$2:$M$13,3,),IPCA!$B$4:$D$46,2,0)/VLOOKUP(DATE($B18,12,1),IPCA!$B$4:$D$46,2,0))) -> 15330.80489 | D18: =IF('Base de dados nominais'!$N$7=12,'Base de dados nominais'!D83,'Base de dados nominais'!D83*(VLOOKUP(VLOOKUP('Base de dados nominais'!$N$7,'Base de dados nominais'!$K$2:$M$13,3,),IPCA!$B$4:$D$46,2,0)/VLOOKUP(DATE($B18,12,1),IPCA!$B$4:$D$46,2,0))) -> 1579.30914 | E18: =IF('Base de dados nominais'!$N$7=12,'Base de dados nominais'!E83,'Base de dados nominais'!E83*(VLOOKUP(VLOOKUP('Base de dados nominais'!$N$7,'Base de dados nominais'!$K$2:$M$13,3,),IPCA!$B$4:$D$46,2,0)/VLOOKUP(DATE($B18,12,1),IPCA!$B$4:$D$46,2,0))) -> 0 | F18: =IF('Base de dados nominais'!$N$7=12,'Base de dados nominais'!F83,'Base de dados nominais'!F83*(VLOOKUP(VLOOKUP('Base de dados nominais'!$N$7,'Base de dados nominais'!$K$2:$M$13,3,),IPCA!$B$4:$D$46,2,0)/VLOOKUP(DATE($B18,12,1),IPCA!$B$4:$D$46,2,0))) -> 17275.38177 | G18: =IF('Base de dados nominais'!$N$7=12,'Base de dados nominais'!G83,'Base de dados nominais'!G83*(VLOOKUP(VLOOKUP('Base de dados nominais'!$N$7,'Base de dados nominais'!$K$2:$M$13,3,),IPCA!$B$4:$D$46,2,0)/VLOOKUP(DATE($B18,12,1),IPCA!$B$4:$D$46,2,0))) -> 3346.05344 | H18: =IF('Base de dados nominais'!$N$7=12,'Base de dados nominais'!H83,'Base de dados nominais'!H83*(VLOOKUP(VLOOKUP('Base de dados nominais'!$N$7,'Base de dados nominais'!$K$2:$M$13,3,),IPCA!$B$4:$D$46,2,0)/VLOOKUP(DATE($B18,12,1),IPCA!$B$4:$D$46,2,0))) -> 2669.051969 | I18: 40200.60121
B19: 2015 | C19: =IF('Base de dados nominais'!$N$7=12,'Base de dados nominais'!C84,'Base de dados nominais'!C84*(VLOOKUP(VLOOKUP('Base de dados nominais'!$N$7,'Base de dados nominais'!$K$2:$M$13,3,),IPCA!$B$4:$D$46,2,0)/VLOOKUP(DATE($B19,12,1),IPCA!$B$4:$D$46,2,0))) -> 14034.74287 | D19: =IF('Base de dados nominais'!$N$7=12,'Base de dados nominais'!D84,'Base de dados nominais'!D84*(VLOOKUP(VLOOKUP('Base de dados nominais'!$N$7,'Base de dados nominais'!$K$2:$M$13,3,),IPCA!$B$4:$D$46,2,0)/VLOOKUP(DATE($B19,12,1),IPCA!$B$4:$D$46,2,0))) -> 1581.296373 | E19: =IF('Base de dados nominais'!$N$7=12,'Base de dados nominais'!E84,'Base de dados nominais'!E84*(VLOOKUP(VLOOKUP('Base de dados nominais'!$N$7,'Base de dados nominais'!$K$2:$M$13,3,),IPCA!$B$4:$D$46,2,0)/VLOOKUP(DATE($B19,12,1),IPCA!$B$4:$D$46,2,0))) -> 0 | F19: =IF('Base de dados nominais'!$N$7=12,'Base de dados nominais'!F84,'Base de dados nominais'!F84*(VLOOKUP(VLOOKUP('Base de dados nominais'!$N$7,'Base de dados nominais'!$K$2:$M$13,3,),IPCA!$B$4:$D$46,2,0)/VLOOKUP(DATE($B19,12,1),IPCA!$B$4:$D$46,2,0))) -> 16065.44419 | G19: =IF('Base de dados nominais'!$N$7=12,'Base de dados nominais'!G84,'Base de dados nominais'!G84*(VLOOKUP(VLOOKUP('Base de dados nominais'!$N$7,'Base de dados nominais'!$K$2:$M$13,3,),IPCA!$B$4:$D$46,2,0)/VLOOKUP(DATE($B19,12,1),IPCA!$B$4:$D$46,2,0))) -> 2911.93508 | H19: =IF('Base de dados nominais'!$N$7=12,'Base de dados nominais'!H84,'Base de dados nominais'!H84*(VLOOKUP(VLOOKUP('Base de dados nominais'!$N$7,'Base de dados nominais'!$K$2:$M$13,3,),IPCA!$B$4:$D$46,2,0)/VLOOKUP(DATE($B19,12,1),IPCA!$B$4:$D$46,2,0))) -> 2260.270195 | I19: 36853.68871
B20: 2016 | C20: =IF('Base de dados nominais'!$N$7=12,'Base de dados nominais'!C85,'Base de dados nominais'!C85*(VLOOKUP(VLOOKUP('Base de dados nominais'!$N$7,'Base de dados nominais'!$K$2:$M$13,3,),IPCA!$B$4:$D$46,2,0)/VLOOKUP(DATE($B20,12,1),IPCA!$B$4:$D$46,2,0))) -> 12449.7045 | D20: =IF('Base de dados nominais'!$N$7=12,'Base de dados nominais'!D85,'Base de dados nominais'!D85*(VLOOKUP(VLOOKUP('Base de dados nominais'!$N$7,'Base de dados nominais'!$K$2:$M$13,3,),IPCA!$B$4:$D$46,2,0)/VLOOKUP(DATE($B20,12,1),IPCA!$B$4:$D$46,2,0))) -> 1426.236445 | E20: =IF('Base de dados nominais'!$N$7=12,'Base de dados nominais'!E85,'Base de dados nominais'!E85*(VLOOKUP(VLOOKUP('Base de dados nominais'!$N$7,'Base de dados nominais'!$K$2:$M$13,3,),IPCA!$B$4:$D$46,2,0)/VLOOKUP(DATE($B20,12,1),IPCA!$B$4:$D$46,2,0))) -> 5601.527169 | F20: =IF('Base de dados nominais'!$N$7=12,'Base de dados nominais'!F85,'Base de dados nominais'!F85*(VLOOKUP(VLOOKUP('Base de dados nominais'!$N$7,'Base de dados nominais'!$K$2:$M$13,3,),IPCA!$B$4:$D$46,2,0)/VLOOKUP(DATE($B20,12,1),IPCA!$B$4:$D$46,2,0))) -> 13497.40399 | G20: =IF('Base de dados nominais'!$N$7=12,'Base de dados nominais'!G85,'Base de dados nominais'!G85*(VLOOKUP(VLOOKUP('Base de dados nominais'!$N$7,'Base de dados nominais'!$K$2:$M$13,3,),IPCA!$B$4:$D$46,2,0)/VLOOKUP(DATE($B20,12,1),IPCA!$B$4:$D$46,2,0))) -> 1710.375438 | H20: =IF('Base de dados nominais'!$N$7=12,'Base de dados nominais'!H85,'Base de dados nominais'!H85*(VLOOKUP(VLOOKUP('Base de dados nominais'!$N$7,'Base de dados nominais'!$K$2:$M$13,3,),IPCA!$B$4:$D$46,2,0)/VLOOKUP(DATE($B20,12,1),IPCA!$B$4:$D$46,2,0))) -> 1409.055137 | I20: 36094.30268
B21: 2017 | C21: =IF('Base de dados nominais'!$N$7=12,'Base de dados nominais'!C86,'Base de dados nominais'!C86*(VLOOKUP(VLOOKUP('Base de dados nominais'!$N$7,'Base de dados nominais'!$K$2:$M$13,3,),IPCA!$B$4:$D$46,2,0)/VLOOKUP(DATE($B21,12,1),IPCA!$B$4:$D$46,2,0))) -> 9851.007581 | D21: =IF('Base de dados nominais'!$N$7=12,'Base de dados nominais'!D86,'Base de dados nominais'!D86*(VLOOKUP(VLOOKUP('Base de dados nominais'!$N$7,'Base de dados nominais'!$K$2:$M$13,3,),IPCA!$B$4:$D$46,2,0)/VLOOKUP(DATE($B21,12,1),IPCA!$B$4:$D$46,2,0))) -> 1354.915035 | E21: =IF('Base de dados nominais'!$N$7=12,'Base de dados nominais'!E86,'Base de dados nominais'!E86*(VLOOKUP(VLOOKUP('Base de dados nominais'!$N$7,'Base de dados nominais'!$K$2:$M$13,3,),IPCA!$B$4:$D$46,2,0)/VLOOKUP(DATE($B21,12,1),IPCA!$B$4:$D$46,2,0))) -> 4786.338846 | F21: =IF('Base de dados nominais'!$N$7=12,'Base de dados nominais'!F86,'Base de dados nominais'!F86*(VLOOKUP(VLOOKUP('Base de dados nominais'!$N$7,'Base de dados nominais'!$K$2:$M$13,3,),IPCA!$B$4:$D$46,2,0)/VLOOKUP(DATE($B21,12,1),IPCA!$B$4:$D$46,2,0))) -> 8793.699359 | G21: =IF('Base de dados nominais'!$N$7=12,'Base de dados nominais'!G86,'Base de dados nominais'!G86*(VLOOKUP(VLOOKUP('Base de dados nominais'!$N$7,'Base de dados nominais'!$K$2:$M$13,3,),IPCA!$B$4:$D$46,2,0)/VLOOKUP(DATE($B21,12,1),IPCA!$B$4:$D$46,2,0))) -> 725.8296564 | H21: =IF('Base de dados nominais'!$N$7=12,'Base de dados nominais'!H86,'Base de dados nominais'!H86*(VLOOKUP(VLOOKUP('Base de dados nominais'!$N$7,'Base de dados nominais'!$K$2:$M$13,3,),IPCA!$B$4:$D$46,2,0)/VLOOKUP(DATE($B21,12,1),IPCA!$B$4:$D$46,2,0))) -> 2608.20047 | I21: 28119.99095
B22: 2018 | C22: =IF('Base de dados nominais'!$N$7=12,'Base de dados nominais'!C87,'Base de dados nominais'!C87*(VLOOKUP(VLOOKUP('Base de dados nominais'!$N$7,'Base de dados nominais'!$K$2:$M$13,3,),IPCA!$B$4:$D$46,2,0)/VLOOKUP(DATE($B22,12,1),IPCA!$B$4:$D$46,2,0))) -> 6426.884546 | D22: =IF('Base de dados nominais'!$N$7=12,'Base de dados nominais'!D87,'Base de dados nominais'!D87*(VLOOKUP(VLOOKUP('Base de dados nominais'!$N$7,'Base de dados nominais'!$K$2:$M$13,3,),IPCA!$B$4:$D$46,2,0)/VLOOKUP(DATE($B22,12,1),IPCA!$B$4:$D$46,2,0))) -> 1184.992874 | E22: =IF('Base de dados nominais'!$N$7=12,'Base de dados nominais'!E87,'Base de dados nominais'!E87*(VLOOKUP(VLOOKUP('Base de dados nominais'!$N$7,'Base de dados nominais'!$K$2:$M$13,3,),IPCA!$B$4:$D$46,2,0)/VLOOKUP(DATE($B22,12,1),IPCA!$B$4:$D$46,2,0))) -> 3366.363308 | F22: =IF('Base de dados nominais'!$N$7=12,'Base de dados nominais'!F87,'Base de dados nominais'!F87*(VLOOKUP(VLOOKUP('Base de dados nominais'!$N$7,'Base de dados nominais'!$K$2:$M$13,3,),IPCA!$B$4:$D$46,2,0)/VLOOKUP(DATE($B22,12,1),IPCA!$B$4:$D$46,2,0))) -> 2289.625522 | G22: =IF('Base de dados nominais'!$N$7=12,'Base de dados nominais'!G87,'Base de dados nominais'!G87*(VLOOKUP(VLOOKUP('Base de dados nominais'!$N$7,'Base de dados nominais'!$K$2:$M$13,3,),IPCA!$B$4:$D$46,2,0)/VLOOKUP(DATE($B22,12,1),IPCA!$B$4:$D$46,2,0))) -> 951.6435471 | H22: =IF('Base de dados nominais'!$N$7=12,'Base de dados nominais'!H87,'Base de dados nominais'!H87*(VLOOKUP(VLOOKUP('Base de dados nominais'!$N$7,'Base de dados nominais'!$K$2:$M$13,3,),IPCA!$B$4:$D$46,2,0)/VLOOKUP(DATE($B22,12,1),IPCA!$B$4:$D$46,2,0))) -> 3767.862427 | I22: 17987.37222
B23: 2019 | C23: =IF('Base de dados nominais'!$N$7=12,'Base de dados nominais'!C88,'Base de dados nominais'!C88*(VLOOKUP(VLOOKUP('Base de dados nominais'!$N$7,'Base de dados nominais'!$K$2:$M$13,3,),IPCA!$B$4:$D$46,2,0)/VLOOKUP(DATE($B23,12,1),IPCA!$B$4:$D$46,2,0))) -> 11310.24802 | D23: =IF('Base de dados nominais'!$N$7=12,'Base de dados nominais'!D88,'Base de dados nominais'!D88*(VLOOKUP(VLOOKUP('Base de dados nominais'!$N$7,'Base de dados nominais'!$K$2:$M$13,3,),IPCA!$B$4:$D$46,2,0)/VLOOKUP(DATE($B23,12,1),IPCA!$B$4:$D$46,2,0))) -> 1100.110334 | E23: =IF('Base de dados nominais'!$N$7=12,'Base de dados nominais'!E88,'Base de dados nominais'!E88*(VLOOKUP(VLOOKUP('Base de dados nominais'!$N$7,'Base de dados nominais'!$K$2:$M$13,3,),IPCA!$B$4:$D$46,2,0)/VLOOKUP(DATE($B23,12,1),IPCA!$B$4:$D$46,2,0))) -> 3463.951097 | F23: =IF('Base de dados nominais'!$N$7=12,'Base de dados nominais'!F88,'Base de dados nominais'!F88*(VLOOKUP(VLOOKUP('Base de dados nominais'!$N$7,'Base de dados nominais'!$K$2:$M$13,3,),IPCA!$B$4:$D$46,2,0)/VLOOKUP(DATE($B23,12,1),IPCA!$B$4:$D$46,2,0))) -> 388.016372 | G23: =IF('Base de dados nominais'!$N$7=12,'Base de dados nominais'!G88,'Base de dados nominais'!G88*(VLOOKUP(VLOOKUP('Base de dados nominais'!$N$7,'Base de dados nominais'!$K$2:$M$13,3,),IPCA!$B$4:$D$46,2,0)/VLOOKUP(DATE($B23,12,1),IPCA!$B$4:$D$46,2,0))) -> 1481.489806 | H23: =IF('Base de dados nominais'!$N$7=12,'Base de dados nominais'!H88,'Base de dados nominais'!H88*(VLOOKUP(VLOOKUP('Base de dados nominais'!$N$7,'Base de dados nominais'!$K$2:$M$13,3,),IPCA!$B$4:$D$46,2,0)/VLOOKUP(DATE($B23,12,1),IPCA!$B$4:$D$46,2,0))) -> 4919.380902 | I23: =SUM(C23:H23) -> 22663.19653
B24: 2020 | C24: =IF('Base de dados nominais'!$N$7=12,'Base de dados nominais'!C89,'Base de dados nominais'!C89*(VLOOKUP(VLOOKUP('Base de dados nominais'!$N$7,'Base de dados nominais'!$K$2:$M$13,3,),IPCA!$B$4:$D$46,2,0)/VLOOKUP(DATE($B24,12,1),IPCA!$B$4:$D$46,2,0))) -> 15611.40936 | D24: =IF('Base de dados nominais'!$N$7=12,'Base de dados nominais'!D89,'Base de dados nominais'!D89*(VLOOKUP(VLOOKUP('Base de dados nominais'!$N$7,'Base de dados nominais'!$K$2:$M$13,3,),IPCA!$B$4:$D$46,2,0)/VLOOKUP(DATE($B24,12,1),IPCA!$B$4:$D$46,2,0))) -> 1287.819108 | E24: =IF('Base de dados nominais'!$N$7=12,'Base de dados nominais'!E89,'Base de dados nominais'!E89*(VLOOKUP(VLOOKUP('Base de dados nominais'!$N$7,'Base de dados nominais'!$K$2:$M$13,3,),IPCA!$B$4:$D$46,2,0)/VLOOKUP(DATE($B24,12,1),IPCA!$B$4:$D$46,2,0))) -> 4997.305697 | F24: =IF('Base de dados nominais'!$N$7=12,'Base de dados nominais'!F89,'Base de dados nominais'!F89*(VLOOKUP(VLOOKUP('Base de dados nominais'!$N$7,'Base de dados nominais'!$K$2:$M$13,3,),IPCA!$B$4:$D$46,2,0)/VLOOKUP(DATE($B24,12,1),IPCA!$B$4:$D$46,2,0))) -> 387.1830158 | G24: =IF('Base de dados nominais'!$N$7=12,'Base de dados nominais'!G89,'Base de dados nominais'!G89*(VLOOKUP(VLOOKUP('Base de dados nominais'!$N$7,'Base de dados nominais'!$K$2:$M$13,3,),IPCA!$B$4:$D$46,2,0)/VLOOKUP(DATE($B24,12,1),IPCA!$B$4:$D$46,2,0))) -> 2378.757102 | H24: =IF('Base de dados nominais'!$N$7=12,'Base de dados nominais'!H89,'Base de dados nominais'!H89*(VLOOKUP(VLOOKUP('Base de dados nominais'!$N$7,'Base de dados nominais'!$K$2:$M$13,3,),IPCA!$B$4:$D$46,2,0)/VLOOKUP(DATE($B24,12,1),IPCA!$B$4:$D$46,2,0))) -> 4482.447206 | I24: 29144.92149
B25: Total Geral | C25: =SUM(C14:C24) -> 112970.084 | D25: =SUM(D14:D24) -> 18939.12959 | E25: 22215.48612 | F25: 128599.729 | G25: 27210.90541 | H25: =SUM(H14:H24) -> 43668.28581 | I25: 353603.6199
B28: Investimentos em Geração Centralizada (bilhões de reais)
B29: Ano | C29: Eólica | D29: PCH | E29: Fotovoltaica | F29: UHE | G29: Biomassa | H29: UTE Fóssil | I29: Total Geral
B30: 2010 | C30: =C14/1000 -> 3.415915096 | D30: =D14/1000 -> 3.788339438 | E30: 0 | F30: =F14/1000 -> 16.94611582 | G30: 2.817357965 | H30: 6.618142078 | I30: =SUM(C30:H30) -> 33.5858704
B31: 2011 | C31: =C15/1000 -> 2.633529152 | D31: 2.65422005 | E31: 0 | F31: =F15/1000 -> 16.73310556 | G31: 3.377969608 | H31: 5.749441624 | I31: =SUM(C31:H31) -> 31.148266
B32: 2012 | C32: 6.21222961 | D32: 1.63765412 | E32: 0 | F32: =F16/1000 -> 18.36813254 | G32: 4.228857373 | H32: 6.361201623 | I32: 36.80807527
B33: 2013 | C33: 15.69360836 | D33: 1.344236667 | E33: 0 | F33: =F17/1000 -> 17.85562087 | G33: 3.280636398 | H33: 2.823232176 | I33: 40.99733447
B34: 2014 | C34: 15.33080489 | D34: 1.57930914 | E34: 0 | F34: =F18/1000 -> 17.27538177 | G34: 3.34605344 | H34: 2.669051969 | I34: 40.20060121
B35: 2015 | C35: 14.03474287 | D35: 1.581296373 | E35: 0 | F35: =F19/1000 -> 16.06544419 | G35: 2.91193508 | H35: 2.260270195 | I35: 36.85368871
B36: 2016 | C36: 12.4497045 | D36: 1.426236445 | E36: 5.601527169 | F36: =F20/1000 -> 13.49740399 | G36: 1.710375438 | H36: 1.409055137 | I36: 36.09430268
B37: 2017 | C37: 9.851007581 | D37: 1.354915035 | E37: 4.786338846 | F37: =F21/1000 -> 8.793699359 | G37: 0.7258296564 | H37: 2.60820047 | I37: 28.11999095
B38: 2018 | C38: 6.426884546 | D38: 1.184992874 | E38: 3.366363308 | F38: =F22/1000 -> 2.289625522 | G38: 0.9516435471 | H38: 3.767862427 | I38: 17.98737222
B39: 2019 | C39: 11.31024802 | D39: 1.100110334 | E39: 3.463951097 | F39: =F23/1000 -> 0.388016372 | G39: 1.481489806 | H39: 4.919380902 | I39: 22.66319653
B40: 2020 | C40: 15.61140936 | D40: 1.287819108 | E40: 4.997305697 | F40: =F24/1000 -> 0.3871830158 | G40: 2.378757102 | H40: 4.482447206 | I40: 29.14492149
B41: Total Geral | C41: =SUM(C30:C40) -> 112.970084 | D41: =SUM(D30:D40) -> 18.93912959 | E41: 22.21548612 | F41: =SUM(F30:F40) -> 128.599729 | G41: 27.21090541 | H41: 43.66828581 | I41: 353.6036199
B45: Investimentos Acumulados (R$ bilhões)
B46: Ano | C46: Eólica | D46: PCH | E46: Fotovoltaica | F46: UHE | G46: Biomassa | H46: UTE Fóssil | I46: Total Geral
B47: 2010 | C47: =C30 -> 3.415915096 | D47: =D30 -> 3.788339438 | E47: 0 | F47: =F30 -> 16.94611582 | G47: 2.817357965 | H47: 6.618142078 | I47: 33.5858704
B48: 2011 | C48: =C31+C47 -> 6.049444247 | D48: =D31+D47 -> 6.442559488 | E48: 0 | F48: =F31+F47 -> 33.67922139 | G48: =G31+G47 -> 6.195327572 | H48: 12.3675837 | I48: 64.7341364 | J48: =(I48-I47)/I47 -> 0.927421729
B49: 2012 | C49: =C32+C48 -> 12.26167386 | D49: 8.080213609 | E49: 0 | F49: 52.04735393 | G49: 10.42418495 | H49: 18.72878533 | I49: 101.5422117 | J49: =(I49-I48)/I48 -> 0.5686037895
B50: 2013 | C50: 27.95528222 | D50: 9.424450276 | E50: 0 | F50: 69.90297479 | G50: 13.70482134 | H50: 21.5520175 | I50: 142.5395461 | J50: 0.4037467157
B51: 2014 | C51: 43.28608711 | D51: 11.00375942 | E51: 0 | F51: 87.17835656 | G51: 17.05087478 | H51: 24.22106947 | I51: 182.7401473 | J51: 0.2820312138
B52: 2015 | C52: 57.32082998 | D52: 12.58505579 | E52: 0 | F52: 103.2438008 | G52: 19.96280986 | H52: 26.48133967 | I52: 219.5938361 | J52: 0.2016726441
B53: 2016 | C53: 69.77053448 | D53: 14.01129223 | E53: 5.601527169 | F53: 116.7412047 | G53: 21.6731853 | H53: 27.8903948 | I53: 255.6881387 | J53: 0.1643684692
B54: 2017 | C54: 79.62154206 | D54: 15.36620727 | E54: 10.38786602 | F54: 125.5349041 | G54: 22.39901496 | H54: 30.49859527 | I54: 283.8081297 | J54: 0.1099776903
B55: 2018 | C55: 86.0484266 | D55: 16.55120014 | E55: 13.75422932 | F55: 127.8245296 | G55: 23.35065851 | H55: 34.2664577 | I55: 301.7955019 | J55: 0.06337863628
B56: 2019 | C56: 97.35867462 | D56: 17.65131048 | E56: 17.21818042 | F56: 128.212546 | G56: 24.83214831 | H56: 39.1858386 | I56: 324.4586984 | J56: 0.0750945471
B57: 2020 | C57: 112.970084 | D57: 18.93912959 | E57: 22.21548612 | F57: 128.599729 | G57: 27.21090541 | H57: 43.66828581 | I57: 353.6036199 | J57: 0.08982629107

Sheet transmissao 2010-2020
B11: Investimentos em Transmissão (milhões de reais)
B12: Ano | C12: LT | D12: SE | E12: Total Geral | F12: %LT/Total
B13: 2010 | C13: =IF('Base de dados nominais'!$N$7=12,'Base de dados nominais'!C30,'Base de dados nominais'!C30*(VLOOKUP(VLOOKUP('Base de dados nominais'!$N$7,'Base de dados nominais'!$K$2:$M$13,3,),IPCA!$B$4:$D$46,2,0)/VLOOKUP(DATE($B13,12,1),IPCA!$B$4:$D$46,2,0))) -> 4268.914678 | D13: =IF('Base de dados nominais'!$N$7=12,'Base de dados nominais'!D30,'Base de dados nominais'!D30*(VLOOKUP(VLOOKUP('Base de dados nominais'!$N$7,'Base de dados nominais'!$K$2:$M$13,3,),IPCA!$B$4:$D$46,2,0)/VLOOKUP(DATE($B13,12,1),IPCA!$B$4:$D$46,2,0))) -> 3646.796886 | E13: =SUM(C13:D13) -> 7915.711564 | F13: =C13/E13 -> 0.5392963909
B14: 2011 | C14: =IF('Base de dados nominais'!$N$7=12,'Base de dados nominais'!C31,'Base de dados nominais'!C31*(VLOOKUP(VLOOKUP('Base de dados nominais'!$N$7,'Base de dados nominais'!$K$2:$M$13,3,),IPCA!$B$4:$D$46,2,0)/VLOOKUP(DATE($B14,12,1),IPCA!$B$4:$D$46,2,0))) -> 4696.724041 | D14: =IF('Base de dados nominais'!$N$7=12,'Base de dados nominais'!D31,'Base de dados nominais'!D31*(VLOOKUP(VLOOKUP('Base de dados nominais'!$N$7,'Base de dados nominais'!$K$2:$M$13,3,),IPCA!$B$4:$D$46,2,0)/VLOOKUP(DATE($B14,12,1),IPCA!$B$4:$D$46,2,0))) -> 4241.269115 | E14: 8937.993156 | F14: =C14/E14 -> 0.52547859
B15: 2012 | C15: =IF('Base de dados nominais'!$N$7=12,'Base de dados nominais'!C32,'Base de dados nominais'!C32*(VLOOKUP(VLOOKUP('Base de dados nominais'!$N$7,'Base de dados nominais'!$K$2:$M$13,3,),IPCA!$B$4:$D$46,2,0)/VLOOKUP(DATE($B15,12,1),IPCA!$B$4:$D$46,2,0))) -> 5471.556204 | D15: =IF('Base de dados nominais'!$N$7=12,'Base de dados nominais'!D32,'Base de dados nominais'!D32*(VLOOKUP(VLOOKUP('Base de dados nominais'!$N$7,'Base de dados nominais'!$K$2:$M$13,3,),IPCA!$B$4:$D$46,2,0)/VLOOKUP(DATE($B15,12,1),IPCA!$B$4:$D$46,2,0))) -> 4763.539046 | E15: 10235.09525 | F15: 0.5345877171
B16: 2013 | C16: =IF('Base de dados nominais'!$N$7=12,'Base de dados nominais'!C33,'Base de dados nominais'!C33*(VLOOKUP(VLOOKUP('Base de dados nominais'!$N$7,'Base de dados nominais'!$K$2:$M$13,3,),IPCA!$B$4:$D$46,2,0)/VLOOKUP(DATE($B16,12,1),IPCA!$B$4:$D$46,2,0))) -> 4587.763226 | D16: =IF('Base de dados nominais'!$N$7=12,'Base de dados nominais'!D33,'Base de dados nominais'!D33*(VLOOKUP(VLOOKUP('Base de dados nominais'!$N$7,'Base de dados nominais'!$K$2:$M$13,3,),IPCA!$B$4:$D$46,2,0)/VLOOKUP(DATE($B16,12,1),IPCA!$B$4:$D$46,2,0))) -> 3809.382329 | E16: 8397.145554 | F16: 0.546347946
B17: 2014 | C17: =IF('Base de dados nominais'!$N$7=12,'Base de dados nominais'!C34,'Base de dados nominais'!C34*(VLOOKUP(VLOOKUP('Base de dados nominais'!$N$7,'Base de dados nominais'!$K$2:$M$13,3,),IPCA!$B$4:$D$46,2,0)/VLOOKUP(DATE($B17,12,1),IPCA!$B$4:$D$46,2,0))) -> 4769.035138 | D17: =IF('Base de dados nominais'!$N$7=12,'Base de dados nominais'!D34,'Base de dados nominais'!D34*(VLOOKUP(VLOOKUP('Base de dados nominais'!$N$7,'Base de dados nominais'!$K$2:$M$13,3,),IPCA!$B$4:$D$46,2,0)/VLOOKUP(DATE($B17,12,1),IPCA!$B$4:$D$46,2,0))) -> 3950.413428 | E17: 8719.448566 | F17: 0.5469422868
B18: 2015 | C18: =IF('Base de dados nominais'!$N$7=12,'Base de dados nominais'!C35,'Base de dados nominais'!C35*(VLOOKUP(VLOOKUP('Base de dados nominais'!$N$7,'Base de dados nominais'!$K$2:$M$13,3,),IPCA!$B$4:$D$46,2,0)/VLOOKUP(DATE($B18,12,1),IPCA!$B$4:$D$46,2,0))) -> 6169.939418 | D18: =IF('Base de dados nominais'!$N$7=12,'Base de dados nominais'!D35,'Base de dados nominais'!D35*(VLOOKUP(VLOOKUP('Base de dados nominais'!$N$7,'Base de dados nominais'!$K$2:$M$13,3,),IPCA!$B$4:$D$46,2,0)/VLOOKUP(DATE($B18,12,1),IPCA!$B$4:$D$46,2,0))) -> 5278.25686 | E18: 11448.19628 | F18: 0.5389442379
B19: 2016 | C19: =IF('Base de dados nominais'!$N$7=12,'Base de dados nominais'!C36,'Base de dados nominais'!C36*(VLOOKUP(VLOOKUP('Base de dados nominais'!$N$7,'Base de dados nominais'!$K$2:$M$13,3,),IPCA!$B$4:$D$46,2,0)/VLOOKUP(DATE($B19,12,1),IPCA!$B$4:$D$46,2,0))) -> 13724.63669 | D19: =IF('Base de dados nominais'!$N$7=12,'Base de dados nominais'!D36,'Base de dados nominais'!D36*(VLOOKUP(VLOOKUP('Base de dados nominais'!$N$7,'Base de dados nominais'!$K$2:$M$13,3,),IPCA!$B$4:$D$46,2,0)/VLOOKUP(DATE($B19,12,1),IPCA!$B$4:$D$46,2,0))) -> 8099.502312 | E19: 21824.13901 | F19: 0.6288741421
B20: 2017 | C20: =IF('Base de dados nominais'!$N$7=12,'Base de dados nominais'!C37,'Base de dados nominais'!C37*(VLOOKUP(VLOOKUP('Base de dados nominais'!$N$7,'Base de dados nominais'!$K$2:$M$13,3,),IPCA!$B$4:$D$46,2,0)/VLOOKUP(DATE($B20,12,1),IPCA!$B$4:$D$46,2,0))) -> 14392.08962 | D20: =IF('Base de dados nominais'!$N$7=12,'Base de dados nominais'!D37,'Base de dados nominais'!D37*(VLOOKUP(VLOOKUP('Base de dados nominais'!$N$7,'Base de dados nominais'!$K$2:$M$13,3,),IPCA!$B$4:$D$46,2,0)/VLOOKUP(DATE($B20,12,1),IPCA!$B$4:$D$46,2,0))) -> 8541.712105 | E20: 22933.80173 | F20: 0.6275492303
B21: 2018 | C21: =IF('Base de dados nominais'!$N$7=12,'Base de dados nominais'!C38,'Base de dados nominais'!C38*(VLOOKUP(VLOOKUP('Base de dados nominais'!$N$7,'Base de dados nominais'!$K$2:$M$13,3,),IPCA!$B$4:$D$46,2,0)/VLOOKUP(DATE($B21,12,1),IPCA!$B$4:$D$46,2,0))) -> 15316.27467 | D21: =IF('Base de dados nominais'!$N$7=12,'Base de dados nominais'!D38,'Base de dados nominais'!D38*(VLOOKUP(VLOOKUP('Base de dados nominais'!$N$7,'Base de dados nominais'!$K$2:$M$13,3,),IPCA!$B$4:$D$46,2,0)/VLOOKUP(DATE($B21,12,1),IPCA!$B$4:$D$46,2,0))) -> 8028.689304 | E21: 23344.96397 | F21: 0.6560847422
B22: 2019 | C22: =IF('Base de dados nominais'!$N$7=12,'Base de dados nominais'!C39,'Base de dados nominais'!C39*(VLOOKUP(VLOOKUP('Base de dados nominais'!$N$7,'Base de dados nominais'!$K$2:$M$13,3,),IPCA!$B$4:$D$46,2,0)/VLOOKUP(DATE($B22,12,1),IPCA!$B$4:$D$46,2,0))) -> 14478.53378 | D22: =IF('Base de dados nominais'!$N$7=12,'Base de dados nominais'!D39,'Base de dados nominais'!D39*(VLOOKUP(VLOOKUP('Base de dados nominais'!$N$7,'Base de dados nominais'!$K$2:$M$13,3,),IPCA!$B$4:$D$46,2,0)/VLOOKUP(DATE($B22,12,1),IPCA!$B$4:$D$46,2,0))) -> 7015.916793 | E22: 21494.45057 | F22: 0.6735940391
B23: 2020 | C23: =IF('Base de dados nominais'!$N$7=12,'Base de dados nominais'!C40,'Base de dados nominais'!C40*(VLOOKUP(VLOOKUP('Base de dados nominais'!$N$7,'Base de dados nominais'!$K$2:$M$13,3,),IPCA!$B$4:$D$46,2,0)/VLOOKUP(DATE($B23,12,1),IPCA!$B$4:$D$46,2,0))) -> 12552.00202 | D23: =IF('Base de dados nominais'!$N$7=12,'Base de dados nominais'!D40,'Base de dados nominais'!D40*(VLOOKUP(VLOOKUP('Base de dados nominais'!$N$7,'Base de dados nominais'!$K$2:$M$13,3,),IPCA!$B$4:$D$46,2,0)/VLOOKUP(DATE($B23,12,1),IPCA!$B$4:$D$46,2,0))) -> 4739.573753 | E23: 17291.57577 | F23: 0.7259027277
B24: Total Geral | C24: =SUM(C13:C23) -> 100427.4695 | D24: =SUM(D13:D23) -> 62115.05193 | E24: 162542.5214
B27: Investimentos em Transmissão (bilhões de reais)
B28: Ano | C28: LT | D28: SE | E28: Total Geral
B29: 2010 | C29: =C13/1000 -> 4.268914678 | D29: =D13/1000 -> 3.646796886 | E29: =SUM(C29:D29) -> 7.915711564
B30: 2011 | C30: =C14/1000 -> 4.696724041 | D30: 4.241269115 | E30: 8.937993156
B31: 2012 | C31: 5.471556204 | D31: 4.763539046 | E31: 10.23509525
B32: 2013 | C32: =C16/1000 -> 4.587763226 | D32: 3.809382329 | E32: 8.397145554
B33: 2014 | C33: 4.769035138 | D33: 3.950413428 | E33: 8.719448566
B34: 2015 | C34: =C18/1000 -> 6.169939418 | D34: 5.27825686 | E34: 11.44819628
B35: 2016 | C35: 13.72463669 | D35: 8.099502312 | E35: 21.82413901
B36: 2017 | C36: 14.39208962 | D36: 8.541712105 | E36: 22.93380173
B37: 2018 | C37: 15.31627467 | D37: 8.028689304 | E37: 23.34496397
B38: 2019 | C38: 14.47853378 | D38: 7.015916793 | E38: 21.49445057
B39: 2020 | C39: 12.55200202 | D39: 4.739573753 | E39: 17.29157577
B40: Total Geral | C40: =SUM(C29:C39) -> 100.4274695 | D40: =SUM(D29:D39) -> 62.11505193 | E40: 162.5425214
B44: Investimentos Acumulados (R$ bilhões)
B45: Ano | C45: LT | D45: SE | E45: Total Geral | F45: Acum(n)/Acum(n-1)
B46: 2010 | C46: =C29 -> 4.268914678 | D46: =D29 -> 3.646796886 | E46: 7.915711564
B47: 2011 | C47: =C30+C46 -> 8.965638719 | D47: =D30+D46 -> 7.888066001 | E47: 16.85370472 | F47: =(E47-E46)/E46 -> 1.129145887
B48: 2012 | C48: =C31+C47 -> 14.43719492 | D48: 12.65160505 | E48: 27.08879997 | F48: =(E48-E47)/E47 -> 0.6072905286
B49: 2013 | C49: 19.02495815 | D49: 16.46098738 | E49: 35.48594552 | F49: 0.3099858821
B50: 2014 | C50: 23.79399329 | D50: 20.4114008 | E50: 44.20539409 | F50: 0.2457155484
B51: 2015 | C51: 29.96393271 | D51: 25.68965766 | E51: 55.65359037 | F51: 0.2589773604
B52: 2016 | C52: 43.6885694 | D52: 33.78915997 | E52: 77.47772937 | F52: 0.392142517
B53: 2017 | C53: 58.08065902 | D53: 42.33087208 | E53: 100.4115311 | F53: 0.2960050832
B54: 2018 | C54: 73.39693369 | D54: 50.35956138 | E54: 123.7564951 | F54: 0.2324928593
B55: 2019 | C55: 87.87546747 | D55: 57.37547818 | E55: 145.2509456 | F55: 0.173683414
B56: 2020 | C56: 100.4274695 | D56: 62.11505193 | E56: 162.5425214 | F56: 0.1190462182

Sheet dist 2010-2020
B11: Investimentos em distribuição de energia elétrica (milhões de reais)
B12: Ano | C12: Total | F12: =C12 -> Total
B13: 2010 | C13: =IF('Base de dados nominais'!$N$7=12,'Base de dados nominais'!$C2,'Base de dados nominais'!$C2*(VLOOKUP(VLOOKUP('Base de dados nominais'!$N$7,'Base de dados nominais'!$K$2:$M$13,3,),IPCA!$B$4:$D$46,2,0)/VLOOKUP(DATE($B13,12,1),IPCA!$B$4:$D$46,2,0))) -> 18767.50049 | F13: =C13 -> 18767.50049 | G13: =C13/F13 -> 1
B14: 2011 | C14: =IF('Base de dados nominais'!$N$7=12,'Base de dados nominais'!$C3,'Base de dados nominais'!$C3*(VLOOKUP(VLOOKUP('Base de dados nominais'!$N$7,'Base de dados nominais'!$K$2:$M$13,3,),IPCA!$B$4:$D$46,2,0)/VLOOKUP(DATE($B14,12,1),IPCA!$B$4:$D$46,2,0))) -> 17211.91891 | F14: 17211.91891 | G14: =C14/F14 -> 1
B15: 2012 | C15: =IF('Base de dados nominais'!$N$7=12,'Base de dados nominais'!$C4,'Base de dados nominais'!$C4*(VLOOKUP(VLOOKUP('Base de dados nominais'!$N$7,'Base de dados nominais'!$K$2:$M$13,3,),IPCA!$B$4:$D$46,2,0)/VLOOKUP(DATE($B15,12,1),IPCA!$B$4:$D$46,2,0))) -> 18241.32405 | F15: 18241.32405 | G15: 1
B16: 2013 | C16: =IF('Base de dados nominais'!$N$7=12,'Base de dados nominais'!$C5,'Base de dados nominais'!$C5*(VLOOKUP(VLOOKUP('Base de dados nominais'!$N$7,'Base de dados nominais'!$K$2:$M$13,3,),IPCA!$B$4:$D$46,2,0)/VLOOKUP(DATE($B16,12,1),IPCA!$B$4:$D$46,2,0))) -> 15875.2681 | F16: 15875.2681 | G16: 1
B17: 2014 | C17: =IF('Base de dados nominais'!$N$7=12,'Base de dados nominais'!$C6,'Base de dados nominais'!$C6*(VLOOKUP(VLOOKUP('Base de dados nominais'!$N$7,'Base de dados nominais'!$K$2:$M$13,3,),IPCA!$B$4:$D$46,2,0)/VLOOKUP(DATE($B17,12,1),IPCA!$B$4:$D$46,2,0))) -> 14179.63599 | F17: 14179.63599 | G17: 1
B18: 2015 | C18: =IF('Base de dados nominais'!$N$7=12,'Base de dados nominais'!$C7,'Base de dados nominais'!$C7*(VLOOKUP(VLOOKUP('Base de dados nominais'!$N$7,'Base de dados nominais'!$K$2:$M$13,3,),IPCA!$B$4:$D$46,2,0)/VLOOKUP(DATE($B18,12,1),IPCA!$B$4:$D$46,2,0))) -> 14366.95414 | F18: 14366.95414 | G18: 1
B19: 2016 | C19: =IF('Base de dados nominais'!$N$7=12,'Base de dados nominais'!$C8,'Base de dados nominais'!$C8*(VLOOKUP(VLOOKUP('Base de dados nominais'!$N$7,'Base de dados nominais'!$K$2:$M$13,3,),IPCA!$B$4:$D$46,2,0)/VLOOKUP(DATE($B19,12,1),IPCA!$B$4:$D$46,2,0))) -> 16049.28534 | F19: 16049.28534 | G19: 1
B20: 2017 | C20: =IF('Base de dados nominais'!$N$7=12,'Base de dados nominais'!$C9,'Base de dados nominais'!$C9*(VLOOKUP(VLOOKUP('Base de dados nominais'!$N$7,'Base de dados nominais'!$K$2:$M$13,3,),IPCA!$B$4:$D$46,2,0)/VLOOKUP(DATE($B20,12,1),IPCA!$B$4:$D$46,2,0))) -> 17732.449 | F20: 17732.449 | G20: 1
B21: 2018 | C21: =IF('Base de dados nominais'!$N$7=12,'Base de dados nominais'!$C10,'Base de dados nominais'!$C10*(VLOOKUP(VLOOKUP('Base de dados nominais'!$N$7,'Base de dados nominais'!$K$2:$M$13,3,),IPCA!$B$4:$D$46,2,0)/VLOOKUP(DATE($B21,12,1),IPCA!$B$4:$D$46,2,0))) -> 16706.1639 | F21: 16706.1639 | G21: 1
B22: 2019 | C22: =IF('Base de dados nominais'!$N$7=12,'Base de dados nominais'!$C11,'Base de dados nominais'!$C11*(VLOOKUP(VLOOKUP('Base de dados nominais'!$N$7,'Base de dados nominais'!$K$2:$M$13,3,),IPCA!$B$4:$D$46,2,0)/VLOOKUP(DATE($B22,12,1),IPCA!$B$4:$D$46,2,0))) -> 18569.89667 | F22: 18569.89667 | G22: 1
B23: 2020 | C23: =IF('Base de dados nominais'!$N$7=12,'Base de dados nominais'!$C12,'Base de dados nominais'!$C12*(VLOOKUP(VLOOKUP('Base de dados nominais'!$N$7,'Base de dados nominais'!$K$2:$M$13,3,),IPCA!$B$4:$D$46,2,0)/VLOOKUP(DATE($B23,12,1),IPCA!$B$4:$D$46,2,0))) -> 19262.158 | F23: 19262.158 | G23: 1
B24: Total Geral | C24: =SUM(C13:C23) -> 186962.5546 | F24: 186962.5546
B27: Investimentos em distribuição de energia elétrica (bilhões de reais)
B28: Ano | C28: Total | F28: Total Geral
B29: 2010 | C29: =C13/1000 -> 18.76750049 | F29: =SUM(C29:E29) -> 18.76750049
B30: 2011 | C30: =C14/1000 -> 17.21191891 | F30: =SUM(C30:E30) -> 17.21191891
B31: 2012 | C31: =C15/1000 -> 18.24132405 | F31: 18.24132405
B32: 2013 | C32: =C16/1000 -> 15.8752681 | F32: 15.8752681
B33: 2014 | C33: =C17/1000 -> 14.17963599 | F33: 14.17963599
B34: 2015 | C34: =C18/1000 -> 14.36695414 | F34: 14.36695414
B35: 2016 | C35: =C19/1000 -> 16.04928534 | F35: 16.04928534
B36: 2017 | C36: =C20/1000 -> 17.732449 | F36: 17.732449
B37: 2018 | C37: =C21/1000 -> 16.7061639 | F37: 16.7061639
B38: 2019 | C38: =C22/1000 -> 18.56989667 | F38: 18.56989667
B39: 2020 | C39: =C23/1000 -> 19.262158 | F39: 19.262158
B40: Total Geral | C40: =SUM(C29:C39) -> 186.9625546 | F40: =SUM(F29:F39) -> 186.9625546
B44: Investimentos Acumulados (R$ bilhões)
B45: Ano | C45: Total | F45: Total
B46: 2010 | C46: =C29 -> 18.76750049 | F46: =F29 -> 18.76750049
B47: 2011 | C47: =C30+C46 -> 35.9794194 | F47: =F30+F46 -> 35.9794194
B48: 2012 | C48: =C31+C47 -> 54.22074344 | F48: =F31+F47 -> 54.22074344
B49: 2013 | C49: 70.09601154 | F49: 70.09601154
B50: 2014 | C50: 84.27564753 | F50: 84.27564753
B51: 2015 | C51: 98.64260167 | F51: 98.64260167
B52: 2016 | C52: 114.691887 | F52: 114.691887
B53: 2017 | C53: 132.424336 | F53: 132.424336
B54: 2018 | C54: 149.1304999 | F54: 149.1304999
B55: 2019 | C55: 167.7003966 | F55: 167.7003966
B56: 2020 | C56: 186.9625546 | F56: 186.9625546

Sheet mmgd 2010-2020
B11: Investimentos em geração distribuída (milhões de reais)
B12: Ano | C12: Eólica | D12: Fotovoltaica | E12: Hidro | F12: Termelétrica | G12: Total Geral
B13: 2010 | C13: =IF('Base de dados nominais'!$N$7=12,'Base de dados nominais'!C16,'Base de dados nominais'!C16*(VLOOKUP(VLOOKUP('Base de dados nominais'!$N$7,'Base de dados nominais'!$K$2:$M$13,3,),IPCA!$B$4:$D$46,2,0)/VLOOKUP(DATE($B13,12,1),IPCA!$B$4:$D$46,2,0))) -> 0 | D13: =IF('Base de dados nominais'!$N$7=12,'Base de dados nominais'!D16,'Base de dados nominais'!D16*(VLOOKUP(VLOOKUP('Base de dados nominais'!$N$7,'Base de dados nominais'!$K$2:$M$13,3,),IPCA!$B$4:$D$46,2,0)/VLOOKUP(DATE($B13,12,1),IPCA!$B$4:$D$46,2,0))) -> 0 | E13: =IF('Base de dados nominais'!$N$7=12,'Base de dados nominais'!E16,'Base de dados nominais'!E16*(VLOOKUP(VLOOKUP('Base de dados nominais'!$N$7,'Base de dados nominais'!$K$2:$M$13,3,),IPCA!$B$4:$D$46,2,0)/VLOOKUP(DATE($B13,12,1),IPCA!$B$4:$D$46,2,0))) -> 0 | F13: =IF('Base de dados nominais'!$N$7=12,'Base de dados nominais'!F16,'Base de dados nominais'!F16*(VLOOKUP(VLOOKUP('Base de dados nominais'!$N$7,'Base de dados nominais'!$K$2:$M$13,3,),IPCA!$B$4:$D$46,2,0)/VLOOKUP(DATE($B13,12,1),IPCA!$B$4:$D$46,2,0))) -> 0 | G13: =SUM(C13:F13) -> 0
B14: 2011 | C14: =IF('Base de dados nominais'!$N$7=12,'Base de dados nominais'!C17,'Base de dados nominais'!C17*(VLOOKUP(VLOOKUP('Base de dados nominais'!$N$7,'Base de dados nominais'!$K$2:$M$13,3,),IPCA!$B$4:$D$46,2,0)/VLOOKUP(DATE($B14,12,1),IPCA!$B$4:$D$46,2,0))) -> 0 | D14: =IF('Base de dados nominais'!$N$7=12,'Base de dados nominais'!D17,'Base de dados nominais'!D17*(VLOOKUP(VLOOKUP('Base de dados nominais'!$N$7,'Base de dados nominais'!$K$2:$M$13,3,),IPCA!$B$4:$D$46,2,0)/VLOOKUP(DATE($B14,12,1),IPCA!$B$4:$D$46,2,0))) -> 0 | E14: =IF('Base de dados nominais'!$N$7=12,'Base de dados nominais'!E17,'Base de dados nominais'!E17*(VLOOKUP(VLOOKUP('Base de dados nominais'!$N$7,'Base de dados nominais'!$K$2:$M$13,3,),IPCA!$B$4:$D$46,2,0)/VLOOKUP(DATE($B14,12,1),IPCA!$B$4:$D$46,2,0))) -> 0 | F14: =IF('Base de dados nominais'!$N$7=12,'Base de dados nominais'!F17,'Base de dados nominais'!F17*(VLOOKUP(VLOOKUP('Base de dados nominais'!$N$7,'Base de dados nominais'!$K$2:$M$13,3,),IPCA!$B$4:$D$46,2,0)/VLOOKUP(DATE($B14,12,1),IPCA!$B$4:$D$46,2,0))) -> 0 | G14: =SUM(C14:F14) -> 0
B15: 2012 | C15: =IF('Base de dados nominais'!$N$7=12,'Base de dados nominais'!C18,'Base de dados nominais'!C18*(VLOOKUP(VLOOKUP('Base de dados nominais'!$N$7,'Base de dados nominais'!$K$2:$M$13,3,),IPCA!$B$4:$D$46,2,0)/VLOOKUP(DATE($B15,12,1),IPCA!$B$4:$D$46,2,0))) -> 0 | D15: =IF('Base de dados nominais'!$N$7=12,'Base de dados nominais'!D18,'Base de dados nominais'!D18*(VLOOKUP(VLOOKUP('Base de dados nominais'!$N$7,'Base de dados nominais'!$K$2:$M$13,3,),IPCA!$B$4:$D$46,2,0)/VLOOKUP(DATE($B15,12,1),IPCA!$B$4:$D$46,2,0))) -> 0 | E15: =IF('Base de dados nominais'!$N$7=12,'Base de dados nominais'!E18,'Base de dados nominais'!E18*(VLOOKUP(VLOOKUP('Base de dados nominais'!$N$7,'Base de dados nominais'!$K$2:$M$13,3,),IPCA!$B$4:$D$46,2,0)/VLOOKUP(DATE($B15,12,1),IPCA!$B$4:$D$46,2,0))) -> 0 | F15: =IF('Base de dados nominais'!$N$7=12,'Base de dados nominais'!F18,'Base de dados nominais'!F18*(VLOOKUP(VLOOKUP('Base de dados nominais'!$N$7,'Base de dados nominais'!$K$2:$M$13,3,),IPCA!$B$4:$D$46,2,0)/VLOOKUP(DATE($B15,12,1),IPCA!$B$4:$D$46,2,0))) -> 0 | G15: 0
B16: 2013 | C16: =IF('Base de dados nominais'!$N$7=12,'Base de dados nominais'!C19,'Base de dados nominais'!C19*(VLOOKUP(VLOOKUP('Base de dados nominais'!$N$7,'Base de dados nominais'!$K$2:$M$13,3,),IPCA!$B$4:$D$46,2,0)/VLOOKUP(DATE($B16,12,1),IPCA!$B$4:$D$46,2,0))) -> 0.2044018429 | D16: =IF('Base de dados nominais'!$N$7=12,'Base de dados nominais'!D19,'Base de dados nominais'!D19*(VLOOKUP(VLOOKUP('Base de dados nominais'!$N$7,'Base de dados nominais'!$K$2:$M$13,3,),IPCA!$B$4:$D$46,2,0)/VLOOKUP(DATE($B16,12,1),IPCA!$B$4:$D$46,2,0))) -> 20.62970645 | E16: =IF('Base de dados nominais'!$N$7=12,'Base de dados nominais'!E19,'Base de dados nominais'!E19*(VLOOKUP(VLOOKUP('Base de dados nominais'!$N$7,'Base de dados nominais'!$K$2:$M$13,3,),IPCA!$B$4:$D$46,2,0)/VLOOKUP(DATE($B16,12,1),IPCA!$B$4:$D$46,2,0))) -> 0 | F16: =IF('Base de dados nominais'!$N$7=12,'Base de dados nominais'!F19,'Base de dados nominais'!F19*(VLOOKUP(VLOOKUP('Base de dados nominais'!$N$7,'Base de dados nominais'!$K$2:$M$13,3,),IPCA!$B$4:$D$46,2,0)/VLOOKUP(DATE($B16,12,1),IPCA!$B$4:$D$46,2,0))) -> 0 | G16: =SUM(C16:F16) -> 20.83410829
B17: 2014 | C17: =IF('Base de dados nominais'!$N$7=12,'Base de dados nominais'!C20,'Base de dados nominais'!C20*(VLOOKUP(VLOOKUP('Base de dados nominais'!$N$7,'Base de dados nominais'!$K$2:$M$13,3,),IPCA!$B$4:$D$46,2,0)/VLOOKUP(DATE($B17,12,1),IPCA!$B$4:$D$46,2,0))) -> 0.3032064188 | D17: =IF('Base de dados nominais'!$N$7=12,'Base de dados nominais'!D20,'Base de dados nominais'!D20*(VLOOKUP(VLOOKUP('Base de dados nominais'!$N$7,'Base de dados nominais'!$K$2:$M$13,3,),IPCA!$B$4:$D$46,2,0)/VLOOKUP(DATE($B17,12,1),IPCA!$B$4:$D$46,2,0))) -> 28.03651112 | E17: =IF('Base de dados nominais'!$N$7=12,'Base de dados nominais'!E20,'Base de dados nominais'!E20*(VLOOKUP(VLOOKUP('Base de dados nominais'!$N$7,'Base de dados nominais'!$K$2:$M$13,3,),IPCA!$B$4:$D$46,2,0)/VLOOKUP(DATE($B17,12,1),IPCA!$B$4:$D$46,2,0))) -> 8.474713568 | F17: =IF('Base de dados nominais'!$N$7=12,'Base de dados nominais'!F20,'Base de dados nominais'!F20*(VLOOKUP(VLOOKUP('Base de dados nominais'!$N$7,'Base de dados nominais'!$K$2:$M$13,3,),IPCA!$B$4:$D$46,2,0)/VLOOKUP(DATE($B17,12,1),IPCA!$B$4:$D$46,2,0))) -> 1.431284958 | G17: 38.24571606
B18: 2015 | C18: =IF('Base de dados nominais'!$N$7=12,'Base de dados nominais'!C21,'Base de dados nominais'!C21*(VLOOKUP(VLOOKUP('Base de dados nominais'!$N$7,'Base de dados nominais'!$K$2:$M$13,3,),IPCA!$B$4:$D$46,2,0)/VLOOKUP(DATE($B18,12,1),IPCA!$B$4:$D$46,2,0))) -> 0.5326170435 | D18: =IF('Base de dados nominais'!$N$7=12,'Base de dados nominais'!D21,'Base de dados nominais'!D21*(VLOOKUP(VLOOKUP('Base de dados nominais'!$N$7,'Base de dados nominais'!$K$2:$M$13,3,),IPCA!$B$4:$D$46,2,0)/VLOOKUP(DATE($B18,12,1),IPCA!$B$4:$D$46,2,0))) -> 93.11572957 | E18: =IF('Base de dados nominais'!$N$7=12,'Base de dados nominais'!E21,'Base de dados nominais'!E21*(VLOOKUP(VLOOKUP('Base de dados nominais'!$N$7,'Base de dados nominais'!$K$2:$M$13,3,),IPCA!$B$4:$D$46,2,0)/VLOOKUP(DATE($B18,12,1),IPCA!$B$4:$D$46,2,0))) -> 0.08353563854 | F18: =IF('Base de dados nominais'!$N$7=12,'Base de dados nominais'!F21,'Base de dados nominais'!F21*(VLOOKUP(VLOOKUP('Base de dados nominais'!$N$7,'Base de dados nominais'!$K$2:$M$13,3,),IPCA!$B$4:$D$46,2,0)/VLOOKUP(DATE($B18,12,1),IPCA!$B$4:$D$46,2,0))) -> 8.45742031 | G18: 102.1893026
B19: 2016 | C19: =IF('Base de dados nominais'!$N$7=12,'Base de dados nominais'!C22,'Base de dados nominais'!C22*(VLOOKUP(VLOOKUP('Base de dados nominais'!$N$7,'Base de dados nominais'!$K$2:$M$13,3,),IPCA!$B$4:$D$46,2,0)/VLOOKUP(DATE($B19,12,1),IPCA!$B$4:$D$46,2,0))) -> 40.33995143 | D19: =IF('Base de dados nominais'!$N$7=12,'Base de dados nominais'!D22,'Base de dados nominais'!D22*(VLOOKUP(VLOOKUP('Base de dados nominais'!$N$7,'Base de dados nominais'!$K$2:$M$13,3,),IPCA!$B$4:$D$46,2,0)/VLOOKUP(DATE($B19,12,1),IPCA!$B$4:$D$46,2,0))) -> 448.9130461 | E19: =IF('Base de dados nominais'!$N$7=12,'Base de dados nominais'!E22,'Base de dados nominais'!E22*(VLOOKUP(VLOOKUP('Base de dados nominais'!$N$7,'Base de dados nominais'!$K$2:$M$13,3,),IPCA!$B$4:$D$46,2,0)/VLOOKUP(DATE($B19,12,1),IPCA!$B$4:$D$46,2,0))) -> 2.8436939 | F19: =IF('Base de dados nominais'!$N$7=12,'Base de dados nominais'!F22,'Base de dados nominais'!F22*(VLOOKUP(VLOOKUP('Base de dados nominais'!$N$7,'Base de dados nominais'!$K$2:$M$13,3,),IPCA!$B$4:$D$46,2,0)/VLOOKUP(DATE($B19,12,1),IPCA!$B$4:$D$46,2,0))) -> 115.5778709 | G19: 607.6745623
B20: 2017 | C20: =IF('Base de dados nominais'!$N$7=12,'Base de dados nominais'!C23,'Base de dados nominais'!C23*(VLOOKUP(VLOOKUP('Base de dados nominais'!$N$7,'Base de dados nominais'!$K$2:$M$13,3,),IPCA!$B$4:$D$46,2,0)/VLOOKUP(DATE($B20,12,1),IPCA!$B$4:$D$46,2,0))) -> 39.79228863 | D20: =IF('Base de dados nominais'!$N$7=12,'Base de dados nominais'!D23,'Base de dados nominais'!D23*(VLOOKUP(VLOOKUP('Base de dados nominais'!$N$7,'Base de dados nominais'!$K$2:$M$13,3,),IPCA!$B$4:$D$46,2,0)/VLOOKUP(DATE($B20,12,1),IPCA!$B$4:$D$46,2,0))) -> 797.2456422 | E20: =IF('Base de dados nominais'!$N$7=12,'Base de dados nominais'!E23,'Base de dados nominais'!E23*(VLOOKUP(VLOOKUP('Base de dados nominais'!$N$7,'Base de dados nominais'!$K$2:$M$13,3,),IPCA!$B$4:$D$46,2,0)/VLOOKUP(DATE($B20,12,1),IPCA!$B$4:$D$46,2,0))) -> 95.16642952 | F20: =IF('Base de dados nominais'!$N$7=12,'Base de dados nominais'!F23,'Base de dados nominais'!F23*(VLOOKUP(VLOOKUP('Base de dados nominais'!$N$7,'Base de dados nominais'!$K$2:$M$13,3,),IPCA!$B$4:$D$46,2,0)/VLOOKUP(DATE($B20,12,1),IPCA!$B$4:$D$46,2,0))) -> 124.9709368 | G20: 1057.175297
B21: 2018 | C21: =IF('Base de dados nominais'!$N$7=12,'Base de dados nominais'!C24,'Base de dados nominais'!C24*(VLOOKUP(VLOOKUP('Base de dados nominais'!$N$7,'Base de dados nominais'!$K$2:$M$13,3,),IPCA!$B$4:$D$46,2,0)/VLOOKUP(DATE($B21,12,1),IPCA!$B$4:$D$46,2,0))) -> 0.2158559114 | D21: =IF('Base de dados nominais'!$N$7=12,'Base de dados nominais'!D24,'Base de dados nominais'!D24*(VLOOKUP(VLOOKUP('Base de dados nominais'!$N$7,'Base de dados nominais'!$K$2:$M$13,3,),IPCA!$B$4:$D$46,2,0)/VLOOKUP(DATE($B21,12,1),IPCA!$B$4:$D$46,2,0))) -> 2119.104385 | E21: =IF('Base de dados nominais'!$N$7=12,'Base de dados nominais'!E24,'Base de dados nominais'!E24*(VLOOKUP(VLOOKUP('Base de dados nominais'!$N$7,'Base de dados nominais'!$K$2:$M$13,3,),IPCA!$B$4:$D$46,2,0)/VLOOKUP(DATE($B21,12,1),IPCA!$B$4:$D$46,2,0))) -> 42.41078076 | F21: =IF('Base de dados nominais'!$N$7=12,'Base de dados nominais'!F24,'Base de dados nominais'!F24*(VLOOKUP(VLOOKUP('Base de dados nominais'!$N$7,'Base de dados nominais'!$K$2:$M$13,3,),IPCA!$B$4:$D$46,2,0)/VLOOKUP(DATE($B21,12,1),IPCA!$B$4:$D$46,2,0))) -> 185.6929367 | G21: 2347.423959
B22: 2019 | C22: =IF('Base de dados nominais'!$N$7=12,'Base de dados nominais'!C25,'Base de dados nominais'!C25*(VLOOKUP(VLOOKUP('Base de dados nominais'!$N$7,'Base de dados nominais'!$K$2:$M$13,3,),IPCA!$B$4:$D$46,2,0)/VLOOKUP(DATE($B22,12,1),IPCA!$B$4:$D$46,2,0))) -> 0.3194706717 | D22: =IF('Base de dados nominais'!$N$7=12,'Base de dados nominais'!D25,'Base de dados nominais'!D25*(VLOOKUP(VLOOKUP('Base de dados nominais'!$N$7,'Base de dados nominais'!$K$2:$M$13,3,),IPCA!$B$4:$D$46,2,0)/VLOOKUP(DATE($B22,12,1),IPCA!$B$4:$D$46,2,0))) -> 6429.137603 | E22: =IF('Base de dados nominais'!$N$7=12,'Base de dados nominais'!E25,'Base de dados nominais'!E25*(VLOOKUP(VLOOKUP('Base de dados nominais'!$N$7,'Base de dados nominais'!$K$2:$M$13,3,),IPCA!$B$4:$D$46,2,0)/VLOOKUP(DATE($B22,12,1),IPCA!$B$4:$D$46,2,0))) -> 26.25217223 | F22: =IF('Base de dados nominais'!$N$7=12,'Base de dados nominais'!F25,'Base de dados nominais'!F25*(VLOOKUP(VLOOKUP('Base de dados nominais'!$N$7,'Base de dados nominais'!$K$2:$M$13,3,),IPCA!$B$4:$D$46,2,0)/VLOOKUP(DATE($B22,12,1),IPCA!$B$4:$D$46,2,0))) -> 273.9838069 | G22: 6729.693053
B23: 2020 | C23: =IF('Base de dados nominais'!$N$7=12,'Base de dados nominais'!C26,'Base de dados nominais'!C26*(VLOOKUP(VLOOKUP('Base de dados nominais'!$N$7,'Base de dados nominais'!$K$2:$M$13,3,),IPCA!$B$4:$D$46,2,0)/VLOOKUP(DATE($B23,12,1),IPCA!$B$4:$D$46,2,0))) -> 31.76243125 | D23: =IF('Base de dados nominais'!$N$7=12,'Base de dados nominais'!D26,'Base de dados nominais'!D26*(VLOOKUP(VLOOKUP('Base de dados nominais'!$N$7,'Base de dados nominais'!$K$2:$M$13,3,),IPCA!$B$4:$D$46,2,0)/VLOOKUP(DATE($B23,12,1),IPCA!$B$4:$D$46,2,0))) -> 10107.38149 | E23: =IF('Base de dados nominais'!$N$7=12,'Base de dados nominais'!E26,'Base de dados nominais'!E26*(VLOOKUP(VLOOKUP('Base de dados nominais'!$N$7,'Base de dados nominais'!$K$2:$M$13,3,),IPCA!$B$4:$D$46,2,0)/VLOOKUP(DATE($B23,12,1),IPCA!$B$4:$D$46,2,0))) -> 15 | F23: =IF('Base de dados nominais'!$N$7=12,'Base de dados nominais'!F26,'Base de dados nominais'!F26*(VLOOKUP(VLOOKUP('Base de dados nominais'!$N$7,'Base de dados nominais'!$K$2:$M$13,3,),IPCA!$B$4:$D$46,2,0)/VLOOKUP(DATE($B23,12,1),IPCA!$B$4:$D$46,2,0))) -> 255.25626 | G23: 10409.40018
B24: Total Geral | C24: =SUM(C13:C23) -> 113.4702232 | D24: =SUM(D13:D23) -> 20043.56411 | E24: 190.2313256 | F24: 965.3705166 | G24: 21312.63618
B27: Investimentos em geração distribuída (bilhões de reais)
B28: Ano | C28: Eólica | D28: Fotovoltaica | E28: Hidro | F28: Termelétrica | G28: Total Geral
B29: 2010 | C29: =C13/1000 -> 0 | D29: =D13/1000 -> 0 | E29: 0 | F29: 0 | G29: =SUM(C29:F29) -> 0
B30: 2011 | C30: =C14/1000 -> 0 | D30: 0 | E30: 0 | F30: 0 | G30: =SUM(C30:F30) -> 0
B31: 2012 | C31: 0 | D31: 0 | E31: 0 | F31: 0 | G31: 0
B32: 2013 | C32: 0.0002044018429 | D32: 0.02062970645 | E32: 0 | F32: 0 | G32: 0.02083410829
B33: 2014 | C33: 0.0003032064188 | D33: 0.02803651112 | E33: 0.008474713568 | F33: 0.001431284958 | G33: 0.03824571606
B34: 2015 | C34: 0.0005326170435 | D34: 0.09311572957 | E34: 8.353563854e-05 | F34: 0.00845742031 | G34: 0.1021893026
B35: 2016 | C35: 0.04033995143 | D35: 0.4489130461 | E35: 0.0028436939 | F35: 0.1155778709 | G35: 0.6076745623
B36: 2017 | C36: 0.03979228863 | D36: 0.7972456422 | E36: 0.09516642952 | F36: 0.1249709368 | G36: 1.057175297
B37: 2018 | C37: 0.0002158559114 | D37: 2.119104385 | E37: 0.04241078076 | F37: 0.1856929367 | G37: 2.347423959
B38: 2019 | C38: 0.0003194706717 | D38: 6.429137603 | E38: 0.02625217223 | F38: 0.2739838069 | G38: 6.729693053
B39: 2020 | C39: 0.03176243125 | D39: 10.10738149 | E39: 0.015 | F39: 0.25525626 | G39: 10.40940018
B40: Total Geral | C40: =SUM(C29:C39) -> 0.1134702232 | D40: =SUM(D29:D39) -> 20.04356411 | E40: 0.1902313256 | F40: 0.9653705166 | G40: 21.31263618
B44: Investimentos Acumulados (R$ bilhões)
B45: Ano | C45: Eólica | D45: Fotovoltaica | E45: Hidro | F45: Termelétrica | G45: Total Geral
B46: 2010 | C46: =C29 -> 0 | D46: =D29 -> 0 | E46: =E29 -> 0 | F46: 0 | G46: 0
B47: 2011 | C47: =C30+C46 -> 0 | D47: =D30+D46 -> 0 | E47: 0 | F47: 0 | G47: 0
B48: 2012 | C48: =C31+C47 -> 0 | D48: 0 | E48: 0 | F48: 0 | G48: 0
B49: 2013 | C49: 0.0002044018429 | D49: 0.02062970645 | E49: 0 | F49: 0 | G49: 0.02083410829
B50: 2014 | C50: 0.0005076082617 | D50: 0.04866621757 | E50: 0.008474713568 | F50: 0.001431284958 | G50: 0.05907982435 | H50: =(G50-G49)/G49 -> 1.835726086
B51: 2015 | C51: 0.001040225305 | D51: 0.1417819471 | E51: 0.008558249206 | F51: 0.009888705268 | G51: 0.1612691269 | H51: =(G51-G50)/G50 -> 1.729681895
B52: 2016 | C52: 0.04138017674 | D52: 0.5906949932 | E52: 0.01140194311 | F52: 0.1254665762 | G52: 0.7689436892 | H52: 3.768077461
B53: 2017 | C53: 0.08117246537 | D53: 1.387940635 | E53: 0.1065683726 | F53: 0.2504375129 | G53: 1.826118986 | H53: 1.374840982
B54: 2018 | C54: 0.08138832128 | D54: 3.507045021 | E54: 0.1489791534 | F54: 0.4361304496 | G54: 4.173542945 | H54: 1.285471525
B55: 2019 | C55: 0.08170779195 | D55: 9.936182624 | E55: 0.1752313256 | F55: 0.7101142566 | G55: 10.903236 | H55: 1.61246527
B56: 2020 | C56: 0.1134702232 | D56: 20.04356411 | E56: 0.1902313256 | F56: 0.9653705166 | G56: 21.31263618 | H56: 0.9547074082 | I56: =(G56-G54)/G54 -> 4.106605217

Sheet pee 2008-2020
C12: Investimentos do PEE (milhões)
C13: Ano | D13: PEE
C14: 2008 | D14: =IF('Base de dados nominais'!$N$7=12,'Base de dados nominais'!C46,'Base de dados nominais'!C46*(VLOOKUP(VLOOKUP('Base de dados nominais'!$N$7,'Base de dados nominais'!$K$2:$M$13,3,),IPCA!$B$4:$D$46,2,0)/VLOOKUP(DATE($C14,12,1),IPCA!$B$4:$D$46,2,0))) -> 266.6609089
C15: 2009 | D15: =IF('Base de dados nominais'!$N$7=12,'Base de dados nominais'!C47,'Base de dados nominais'!C47*(VLOOKUP(VLOOKUP('Base de dados nominais'!$N$7,'Base de dados nominais'!$K$2:$M$13,3,),IPCA!$B$4:$D$46,2,0)/VLOOKUP(DATE($C15,12,1),IPCA!$B$4:$D$46,2,0))) -> 593.4355225
C16: 2010 | D16: =IF('Base de dados nominais'!$N$7=12,'Base de dados nominais'!C48,'Base de dados nominais'!C48*(VLOOKUP(VLOOKUP('Base de dados nominais'!$N$7,'Base de dados nominais'!$K$2:$M$13,3,),IPCA!$B$4:$D$46,2,0)/VLOOKUP(DATE($C16,12,1),IPCA!$B$4:$D$46,2,0))) -> 1014.166962
C17: 2011 | D17: =IF('Base de dados nominais'!$N$7=12,'Base de dados nominais'!C49,'Base de dados nominais'!C49*(VLOOKUP(VLOOKUP('Base de dados nominais'!$N$7,'Base de dados nominais'!$K$2:$M$13,3,),IPCA!$B$4:$D$46,2,0)/VLOOKUP(DATE($C17,12,1),IPCA!$B$4:$D$46,2,0))) -> 802.7994647
C18: 2012 | D18: =IF('Base de dados nominais'!$N$7=12,'Base de dados nominais'!C50,'Base de dados nominais'!C50*(VLOOKUP(VLOOKUP('Base de dados nominais'!$N$7,'Base de dados nominais'!$K$2:$M$13,3,),IPCA!$B$4:$D$46,2,0)/VLOOKUP(DATE($C18,12,1),IPCA!$B$4:$D$46,2,0))) -> 769.3653863
C19: 2013 | D19: =IF('Base de dados nominais'!$N$7=12,'Base de dados nominais'!C51,'Base de dados nominais'!C51*(VLOOKUP(VLOOKUP('Base de dados nominais'!$N$7,'Base de dados nominais'!$K$2:$M$13,3,),IPCA!$B$4:$D$46,2,0)/VLOOKUP(DATE($C19,12,1),IPCA!$B$4:$D$46,2,0))) -> 626.0618859
C20: 2014 | D20: =IF('Base de dados nominais'!$N$7=12,'Base de dados nominais'!C52,'Base de dados nominais'!C52*(VLOOKUP(VLOOKUP('Base de dados nominais'!$N$7,'Base de dados nominais'!$K$2:$M$13,3,),IPCA!$B$4:$D$46,2,0)/VLOOKUP(DATE($C20,12,1),IPCA!$B$4:$D$46,2,0))) -> 676.4936003
C21: 2015 | D21: =IF('Base de dados nominais'!$N$7=12,'Base de dados nominais'!C53,'Base de dados nominais'!C53*(VLOOKUP(VLOOKUP('Base de dados nominais'!$N$7,'Base de dados nominais'!$K$2:$M$13,3,),IPCA!$B$4:$D$46,2,0)/VLOOKUP(DATE($C21,12,1),IPCA!$B$4:$D$46,2,0))) -> 710.0340522
C22: 2016 | D22: =IF('Base de dados nominais'!$N$7=12,'Base de dados nominais'!C54,'Base de dados nominais'!C54*(VLOOKUP(VLOOKUP('Base de dados nominais'!$N$7,'Base de dados nominais'!$K$2:$M$13,3,),IPCA!$B$4:$D$46,2,0)/VLOOKUP(DATE($C22,12,1),IPCA!$B$4:$D$46,2,0))) -> 599.0508302
C23: 2017 | D23: =IF('Base de dados nominais'!$N$7=12,'Base de dados nominais'!C55,'Base de dados nominais'!C55*(VLOOKUP(VLOOKUP('Base de dados nominais'!$N$7,'Base de dados nominais'!$K$2:$M$13,3,),IPCA!$B$4:$D$46,2,0)/VLOOKUP(DATE($C23,12,1),IPCA!$B$4:$D$46,2,0))) -> 614.9499218
C24: 2018 | D24: =IF('Base de dados nominais'!$N$7=12,'Base de dados nominais'!C56,'Base de dados nominais'!C56*(VLOOKUP(VLOOKUP('Base de dados nominais'!$N$7,'Base de dados nominais'!$K$2:$M$13,3,),IPCA!$B$4:$D$46,2,0)/VLOOKUP(DATE($C24,12,1),IPCA!$B$4:$D$46,2,0))) -> 554.1552871
C25: 2019 | D25: =IF('Base de dados nominais'!$N$7=12,'Base de dados nominais'!C57,'Base de dados nominais'!C57*(VLOOKUP(VLOOKUP('Base de dados nominais'!$N$7,'Base de dados nominais'!$K$2:$M$13,3,),IPCA!$B$4:$D$46,2,0)/VLOOKUP(DATE($C25,12,1),IPCA!$B$4:$D$46,2,0))) -> 717.0379608
C26: 2020 | D26: =IF('Base de dados nominais'!$N$7=12,'Base de dados nominais'!C58,'Base de dados nominais'!C58*(VLOOKUP(VLOOKUP('Base de dados nominais'!$N$7,'Base de dados nominais'!$K$2:$M$13,3,),IPCA!$B$4:$D$46,2,0)/VLOOKUP(DATE($C26,12,1),IPCA!$B$4:$D$46,2,0))) -> 605.011969
C27: Total Geral | D27: =SUM(D14:D26) -> 8549.223752
C30: Investimentos Acumulados (R$ bilhões)
C31: Ano | D31: PEE | E31: Acum(n)/Acum(n-1)
C32: 2008 | D32: =D14/1000 -> 0.2666609089
C33: 2009 | D33: =(D15/1000)+D32 -> 0.8600964314 | E33: =(D33-D32)/D32 -> 2.22543126
C34: 2010 | D34: 1.874263393 | E34: =(D34-D33)/D33 -> 1.179131694
C35: 2011 | D35: 2.677062858 | E35: 0.4283279861
C36: 2012 | D36: 3.446428244 | E36: 0.2873916031
C37: 2013 | D37: 4.07249013 | E37: 0.1816552795
C38: 2014 | D38: 4.748983731 | E38: 0.1661130116
C39: 2015 | D39: 5.459017783 | E39: 0.1495128416
C40: 2016 | D40: 6.058068613 | E40: 0.10973601
C41: 2017 | D41: 6.673018535 | E41: 0.1015092369
C42: 2018 | D42: 7.227173822 | E42: 0.08304417023
C43: 2019 | D43: 7.944211783 | E43: 0.09921415736
C44: 2020 | D44: 8.549223752 | E44: =(D44-D43)/D43 -> 0.0761575831

Sheet p&d 2008-2020
B12: Investimentos do P&D (milhões)
B13: Ano | C13: P&D
B14: 2008 | C14: =IF('Base de dados nominais'!$N$7=12,'Base de dados nominais'!C62,'Base de dados nominais'!C62*(VLOOKUP(VLOOKUP('Base de dados nominais'!$N$7,'Base de dados nominais'!$K$2:$M$13,3,),IPCA!$B$4:$D$46,2,0)/VLOOKUP(DATE($B14,12,1),IPCA!$B$4:$D$46,2,0))) -> 182.3501559
B15: 2009 | C15: =IF('Base de dados nominais'!$N$7=12,'Base de dados nominais'!C63,'Base de dados nominais'!C63*(VLOOKUP(VLOOKUP('Base de dados nominais'!$N$7,'Base de dados nominais'!$K$2:$M$13,3,),IPCA!$B$4:$D$46,2,0)/VLOOKUP(DATE($B15,12,1),IPCA!$B$4:$D$46,2,0))) -> 462.9524146
B16: 2010 | C16: =IF('Base de dados nominais'!$N$7=12,'Base de dados nominais'!C64,'Base de dados nominais'!C64*(VLOOKUP(VLOOKUP('Base de dados nominais'!$N$7,'Base de dados nominais'!$K$2:$M$13,3,),IPCA!$B$4:$D$46,2,0)/VLOOKUP(DATE($B16,12,1),IPCA!$B$4:$D$46,2,0))) -> 670.38929
B17: 2011 | C17: =IF('Base de dados nominais'!$N$7=12,'Base de dados nominais'!C65,'Base de dados nominais'!C65*(VLOOKUP(VLOOKUP('Base de dados nominais'!$N$7,'Base de dados nominais'!$K$2:$M$13,3,),IPCA!$B$4:$D$46,2,0)/VLOOKUP(DATE($B17,12,1),IPCA!$B$4:$D$46,2,0))) -> 592.0659591
B18: 2012 | C18: =IF('Base de dados nominais'!$N$7=12,'Base de dados nominais'!C66,'Base de dados nominais'!C66*(VLOOKUP(VLOOKUP('Base de dados nominais'!$N$7,'Base de dados nominais'!$K$2:$M$13,3,),IPCA!$B$4:$D$46,2,0)/VLOOKUP(DATE($B18,12,1),IPCA!$B$4:$D$46,2,0))) -> 939.2652355
B19: 2013 | C19: =IF('Base de dados nominais'!$N$7=12,'Base de dados nominais'!C67,'Base de dados nominais'!C67*(VLOOKUP(VLOOKUP('Base de dados nominais'!$N$7,'Base de dados nominais'!$K$2:$M$13,3,),IPCA!$B$4:$D$46,2,0)/VLOOKUP(DATE($B19,12,1),IPCA!$B$4:$D$46,2,0))) -> 552.1145108
B20: 2014 | C20: =IF('Base de dados nominais'!$N$7=12,'Base de dados nominais'!C68,'Base de dados nominais'!C68*(VLOOKUP(VLOOKUP('Base de dados nominais'!$N$7,'Base de dados nominais'!$K$2:$M$13,3,),IPCA!$B$4:$D$46,2,0)/VLOOKUP(DATE($B20,12,1),IPCA!$B$4:$D$46,2,0))) -> 742.2344675
B21: 2015 | C21: =IF('Base de dados nominais'!$N$7=12,'Base de dados nominais'!C69,'Base de dados nominais'!C69*(VLOOKUP(VLOOKUP('Base de dados nominais'!$N$7,'Base de dados nominais'!$K$2:$M$13,3,),IPCA!$B$4:$D$46,2,0)/VLOOKUP(DATE($B21,12,1),IPCA!$B$4:$D$46,2,0))) -> 570.8062504
B22: 2016 | C22: =IF('Base de dados nominais'!$N$7=12,'Base de dados nominais'!C70,'Base de dados nominais'!C70*(VLOOKUP(VLOOKUP('Base de dados nominais'!$N$7,'Base de dados nominais'!$K$2:$M$13,3,),IPCA!$B$4:$D$46,2,0)/VLOOKUP(DATE($B22,12,1),IPCA!$B$4:$D$46,2,0))) -> 545.9263142
B23: 2017 | C23: =IF('Base de dados nominais'!$N$7=12,'Base de dados nominais'!C71,'Base de dados nominais'!C71*(VLOOKUP(VLOOKUP('Base de dados nominais'!$N$7,'Base de dados nominais'!$K$2:$M$13,3,),IPCA!$B$4:$D$46,2,0)/VLOOKUP(DATE($B23,12,1),IPCA!$B$4:$D$46,2,0))) -> 625.8860428
B24: 2018 | C24: =IF('Base de dados nominais'!$N$7=12,'Base de dados nominais'!C72,'Base de dados nominais'!C72*(VLOOKUP(VLOOKUP('Base de dados nominais'!$N$7,'Base de dados nominais'!$K$2:$M$13,3,),IPCA!$B$4:$D$46,2,0)/VLOOKUP(DATE($B24,12,1),IPCA!$B$4:$D$46,2,0))) -> 949.547567
B25: 2019 | C25: =IF('Base de dados nominais'!$N$7=12,'Base de dados nominais'!C73,'Base de dados nominais'!C73*(VLOOKUP(VLOOKUP('Base de dados nominais'!$N$7,'Base de dados nominais'!$K$2:$M$13,3,),IPCA!$B$4:$D$46,2,0)/VLOOKUP(DATE($B25,12,1),IPCA!$B$4:$D$46,2,0))) -> 1102.277155
B26: 2020 | C26: =IF('Base de dados nominais'!$N$7=12,'Base de dados nominais'!C74,'Base de dados nominais'!C74*(VLOOKUP(VLOOKUP('Base de dados nominais'!$N$7,'Base de dados nominais'!$K$2:$M$13,3,),IPCA!$B$4:$D$46,2,0)/VLOOKUP(DATE($B26,12,1),IPCA!$B$4:$D$46,2,0))) -> 888.448894
B27: Total Geral | C27: =SUM(C14:C25) -> 7935.815363
B30: Investimentos Acumulados (R$ bilhões)
B31: Ano | C31: P&D
B32: 2008 | C32: =C14/1000 -> 0.1823501559
B33: 2009 | C33: =(C15/1000)+C32 -> 0.6453025706 | D33: =(C33-C32)/C32 -> 2.538810083
B34: 2010 | C34: 1.315691861 | D34: =(C34-C33)/C33 -> 1.038875902
B35: 2011 | C35: 1.90775782 | D35: 0.4500035129
B36: 2012 | C36: 2.847023055 | D36: 0.4923398692
B37: 2013 | C37: 3.399137566 | D37: 0.1939269546
B38: 2014 | C38: 4.141372034 | D38: 0.2183596436
B39: 2015 | C39: 4.712178284 | D39: 0.1378302277
B40: 2016 | C40: 5.258104598 | D40: 0.1158543419
B41: 2017 | C41: 5.883990641 | D41: 0.1190326345
B42: 2018 | C42: 6.833538208 | D42: 0.1613781573
B43: 2019 | C43: 7.935815363 | D43: 0.1613040157
B44: 2020 | C44: 8.824264257 | D44: =(C44-C43)/C43 -> 0.1119543303

Sheet IPCA
A1: Tabela 1737 - IPCA - Série histórica com número-índice, variação mensal e variações acumuladas em 3 meses, em 6 meses, no ano e em 12 meses (a partir de dezembro/1979)
B2: Mês | C2: Variável
C3: IPCA - Número-índice (base: dezembro de 1993 = 100) (Número-índice) | D3: IPCA - Variação acumulada no ano (%)
A4: Brasil | B4: 1979-12-01 | C4: 7.6183e-09 | D4: ...
B5: 1980-12-01 | C5: 1.51795e-08 | D5: 99.25
B6: 1981-12-01 | C6: 2.96946e-08 | D6: 95.62
B7: 1982-12-01 | C7: 6.08117e-08 | D7: 104.79
B8: 1983-12-01 | C8: 1.605502e-07 | D8: 164.01
B9: 1984-12-01 | C9: 5.061559e-07 | D9: 215.26
B10: 1985-12-01 | C10: 1.7322163e-06 | D10: 242.23
B11: 1986-12-01 | C11: 3.1121777e-06 | D11: 79.66
B12: 1987-12-01 | C12: 1.44221901e-05 | D12: 363.41
B13: 1988-12-01 | C13: 0.0001557904426 | D13: 980.21
B14: 1989-12-01 | C14: 0.003229398193 | D14: 1972.91
B15: 1990-12-01 | C15: 0.05557686002 | D15: 1620.97
B16: 1991-12-01 | C16: 0.3182886773 | D16: 472.7
B17: 1992-12-01 | C17: 3.880259655 | D17: 1119.1
B18: 1993-12-01 | C18: 100 | D18: 2477.15
B19: 1994-12-01 | C19: 1016.46 | D19: 916.46
B20: 1995-12-01 | C20: 1244.23 | D20: 22.41
B21: 1996-12-01 | C21: 1363.24 | D21: 9.56
B22: 1997-12-01 | C22: 1434.46 | D22: 5.22
B23: 1998-12-01 | C23: 1458.2 | D23: 1.65
B24: 1999-12-01 | C24: 1588.56 | D24: 8.94
B25: 2000-12-01 | C25: 1683.47 | D25: 5.97
B26: 2001-12-01 | C26: 1812.65 | D26: 7.67
B27: 2002-12-01 | C27: 2039.78 | D27: 12.53
B28: 2003-12-01 | C28: 2229.49 | D28: 9.3
B29: 2004-12-01 | C29: 2398.92 | D29: 7.6
B30: 2005-12-01 | C30: 2535.4 | D30: 5.69
B31: 2006-12-01 | C31: 2615.05 | D31: 3.14
B32: 2007-12-01 | C32: 2731.62 | D32: 4.46
B33: 2008-12-01 | C33: 2892.86 | D33: 5.9
B34: 2009-12-01 | C34: 3017.59 | D34: 4.31
B35: 2010-12-01 | C35: 3195.89 | D35: 5.91
B36: 2011-12-01 | C36: 3403.73 | D36: 6.5
B37: 2012-12-01 | C37: 3602.46 | D37: 5.84
B38: 2013-12-01 | C38: 3815.39 | D38: 5.91
B39: 2014-12-01 | C39: 4059.86 | D39: 6.41
B40: 2015-12-01 | C40: 4493.17 | D40: 10.67
B41: 2016-12-01 | C41: 4775.7 | D41: 6.29
B42: 2017-12-01 | C42: 4916.46 | D42: 2.95
B43: 2018-12-01 | C43: 5100.61 | D43: 3.75
B44: 2019-12-01 | C44: 5320.25 | D44: 4.31
B45: 2020-12-01 | C45: 5560.59 | D45: 4.52
B46: 2021-12-01 | C46: 6120.04 | D46: 10.06
A47: Fonte: IBGE - Índice Nacional de Preços ao Consumidor Amplo

Sheet Base de dados nominais
A1: aba | B1: Ano | C1: Total | G1: Deflator | H1: Valor BMP | L1: Seleção | T1: Ano do Movimento | U1: Aplicações - R$ Mil
A2: Distribuição | B2: 2010 | C2: 10786.42143 | G2: 0.794896635 | H2: 13569.59 | I2: =H2*G2 -> 10786.42143 | K2: 1 | L2: 2010 | M2: 2010-12-01 | T2: 2011 | U2: 10535703
A3: Distribuição | B3: 2011 | C3: 10535.703 | K3: 2 | L3: 2011 | M3: 2011-12-01 | T3: 2012 | U3: 11817746
A4: Distribuição | B4: 2012 | C4: 11817.746 | K4: 3 | L4: 2012 | M4: 2012-12-01 | T4: 2013 | U4: 10892790
A5: Distribuição | B5: 2013 | C5: 10892.79 | K5: 4 | L5: 2013 | M5: 2013-12-01 | T5: 2014 | U5: 10352739
A6: Distribuição | B6: 2014 | C6: 10352.739 | K6: 5 | L6: 2014 | M6: 2014-12-01 | T6: 2015 | U6: 11609050
A7: Distribuição | B7: 2015 | C7: 11609.05 | K7: 6 | L7: 2015 | M7: 2015-12-01 | N7: 11 | T7: 2016 | U7: 13783892
A8: Distribuição | B8: 2016 | C8: 13783.892 | K8: 7 | L8: 2016 | M8: 2016-12-01 | T8: 2017 | U8: 15678350
A9: Distribuição | B9: 2017 | C9: 15678.35 | K9: 8 | L9: 2017 | M9: 2017-12-01 | T9: 2018 | U9: 15324206
A10: Distribuição | B10: 2018 | C10: 15324.206 | K10: 9 | L10: 2018 | M10: 2018-12-01 | T10: 2019 | U10: 17767268
A11: Distribuição | B11: 2019 | C11: 17767.268 | K11: 10 | L11: 2019 | M11: 2019-12-01 | T11: 2020 | U11: 19262158
A12: Distribuição | B12: 2020 | C12: 19262.158 | K12: 11 | L12: 2020 | M12: 2020-12-01 | T12: 2021 | U12: 26230021
K13: 12 | L13: Nominal
B15: Ano | C15: Eólica | D15: Fotovoltaica | E15: Hidro | F15: Termelétrica
A16: MMGD | B16: 2010
A17: MMGD | B17: 2011
A18: MMGD | B18: 2012
A19: MMGD | B19: 2013 | C19: 0.14025 | D19: 14.15504033
A20: MMGD | B20: 2014 | C20: 0.221375 | D20: 20.46982605 | E20: 6.1875 | F20: 1.045
A21: MMGD | B21: 2015 | C21: 0.430375 | D21: 75.24108101 | E21: 0.0675 | F21: 6.83392
A22: MMGD | B22: 2016 | C22: 34.645875 | D22: 385.5479426 | E22: 2.4423 | F22: 99.26379
A23: MMGD | B23: 2017 | C23: 35.1828125 | D23: 704.8939609 | E23: 84.1425 | F23: 110.4945
A24: MMGD | B24: 2018 | C24: 0.198 | D24: 1943.809024 | E24: 38.9025 | F24: 170.33215
A25: MMGD | B25: 2019 | C25: 0.3056625 | D25: 6151.25721 | E25: 25.1175 | F25: 262.14167
A26: MMGD | B26: 2020 | C26: 31.76243125 | D26: 10107.38149 | E26: 15 | F26: 255.25626
B29: Ano | C29: LT | D29: SE
A30: Transmissão | B30: 2010 | C30: 2453.513338 | D30: 2095.957749
A31: Transmissão | B31: 2011 | C31: 2874.94322 | D31: 2596.151654
A32: Transmissão | B32: 2012 | C32: 3544.778946 | D32: 3086.085985
A33: Transmissão | B33: 2013 | C33: 3147.886453 | D33: 2613.801637
A34: Transmissão | B34: 2014 | C34: 3481.935369 | D34: 2884.248876
A35: Transmissão | B35: 2015 | C35: 4985.547702 | D35: 4265.033994
A36: Transmissão | B36: 2016 | C36: 11787.37283 | D36: 6956.23903
A37: Transmissão | B37: 2017 | C37: 12724.9326 | D37: 7552.253609
A38: Transmissão | B38: 2018 | C38: 14049.29041 | D38: 7364.544581
A39: Transmissão | B39: 2019 | C39: 13852.74212 | D39: 6712.674612
A40: Transmissão | B40: 2020 | C40: 12552.00202 | D40: 4739.573753
B44: investimento_milhoes
A45: PEE | B45: Ano | C45: PEE
A46: PEE | B46: 2008 | C46: 138.728566
A47: PEE | B47: 2009 | C47: 322.042283
A48: PEE | B48: 2010 | C48: 582.881682
A49: PEE | B49: 2011 | C49: 491.406959
A50: PEE | B50: 2012 | C50: 498.437761
A51: PEE | B51: 2013 | C51: 429.571369
A52: PEE | B52: 2014 | C52: 493.916888
A53: PEE | B53: 2015 | C53: 573.734748
A54: PEE | B54: 2016 | C54: 514.493435
A55: PEE | B55: 2017 | C55: 543.71509
A56: PEE | B56: 2018 | C56: 508.314765
A57: PEE | B57: 2019 | C57: 686.046123
A58: PEE | B58: 2020 | C58: 605.011969
B61: Ano | C61: P&D
A62: P&D | B62: 2008 | C62: 94.866457
A63: P&D | B63: 2009 | C63: 251.232437
A64: P&D | B64: 2010 | C64: 385.299119
A65: P&D | B65: 2011 | C65: 362.413461
A66: P&D | B66: 2012 | C66: 608.508349
A67: P&D | B67: 2013 | C67: 378.832495
A68: P&D | B68: 2014 | C68: 541.915161
A69: P&D | B69: 2015 | C69: 461.233344
A70: P&D | B70: 2016 | C70: 468.867566
A71: P&D | B71: 2017 | C71: 553.384388
A72: P&D | B72: 2018 | C72: 870.999627
A73: P&D | B73: 2019 | C73: 1054.634496
A74: P&D | B74: 2020 | C74: 888.448894
B78: Ano | C78: Eólica | D78: PCH | E78: Fotovoltaica | F78: UHE | G78: Biomassa | H78: UTE Fóssil
A79: Centralizada | B79: 2010 | C79: 1963.260894 | D79: 2177.307827 | E79: 0 | F79: 9739.599953 | G79: 1619.246545 | H79: 3803.706816
A80: Centralizada | B80: 2011 | C80: 1612.027173 | D80: 1624.692418 | E80: 0 | F80: 10242.61336 | G80: 2067.711608 | H80: 3519.329233
A81: Centralizada | B81: 2012 | C81: 4024.628444 | D81: 1060.963578 | E81: 0 | F81: 11899.89961 | G81: 2739.689409 | H81: 4121.140814
A82: Centralizada | B82: 2013 | C82: 10768.14446 | D82: 922.3458547 | E82: 0 | F82: 12251.60591 | G82: 2251.003456 | H82: 1937.156275
A83: Centralizada | B83: 2014 | C83: 11193.22258 | D83: 1153.074405 | E83: 0 | F83: 12612.98377 | G83: 2442.997689 | H83: 1948.709998
A84: Centralizada | B84: 2015 | C84: 11340.61055 | D84: 1277.748121 | E84: 0 | F84: 12981.49511 | G84: 2352.955234 | H84: 1826.385012
A85: Centralizada | B85: 2016 | C85: 10692.40023 | D85: 1224.919908 | E85: 4810.858794 | F85: 11592.21454 | G85: 1468.952032 | H85: 1210.163781
A86: Centralizada | B86: 2017 | C86: 8709.882356 | D86: 1197.963808 | E86: 4231.896882 | F86: 7775.051056 | G86: 641.7506905 | H86: 2306.07063
A87: Centralizada | B87: 2018 | C87: 5895.243416 | D87: 1086.96856 | E87: 3087.892895 | F87: 2100.224406 | G87: 872.9222246 | H87: 3456.179429
A88: Centralizada | B88: 2019 | C88: 10821.39612 | D88: 1052.56133 | E88: 3314.232091 | F88: 371.2455158 | G88: 1417.456806 | H88: 4706.755262
A89: Centralizada | B89: 2020 | C89: 15611.40936 | D89: 1287.819108 | E89: 4997.305697 | F89: 387.1830158 | G89: 2378.757102 | H89: 4482.447206
